Workbook

Sheet 1. Project
A1: =Words!A20 -> Projektin tiedot | E1: =Words!$A$21 -> Käyttöohje
A3: Kieli/language/språk | B3: Suomi | F3: =Words!$A$19 -> Sivut 1-6 sisältävät täytettäviä tietoja
G4: =Words!$A$18 -> Täytä tämän värisiä soluja
A5: =Words!A33 -> Opiskelijan nimi
A6: =Words!A34 -> Puhelin
A7: =Words!A35 -> Sähköposti
A9: =Words!A27 -> Yrityksen nimi
A10: =Words!A28 -> Osoite
A11: =Words!A29 -> Puhelin
A12: =Words!A30 -> Sähköposti
A14: =Words!A37 -> Päivämäärä
A15: =Words!A38 -> Yritystoiminnan aloituspvm
A17: =Words!A39 -> Yhtiömuoto | B17: Osakeyhtiö | C17: =Words!A15 -> Valitse yhtiömuoto
A18: =Words!A40 -> Prh-maksu | B18: =IF(B17="","",IF(C92<>FALSE,Calc!B7,IF(C93<>FALSE,Calc!C7,IF(C94<>FALSE,Calc!D7,IF(C95<>FALSE,Calc!E7,IF(C96<>FALSE,Calc!F7))))))&" €" -> 280 €
A20: =Words!A41 -> Päätoimiala
A92: =Calc!B6 -> Yksityinen elinkeinonharjoittaja | C92: =IF(B17="","",IF(B17=Words!B10,Calc!B7,IF(B17=Words!C10,Calc!B7,IF(B17=Words!D10,Calc!B7)))) -> FALSE
A93: =Calc!C6 -> Avoin yhtiö | C93: =IF(B17="","",IF(B17=Words!B11,Calc!C7,IF(B17=Words!C11,Calc!C7,IF(B17=Words!D11,Calc!C7)))) -> FALSE
A94: =Calc!D6 -> Kommandiittiyhtiö | C94: =IF(B17="","",IF(B17=Words!B12,Calc!D7,IF(B17=Words!C12,Calc!D7,IF(B17=Words!C12,Calc!D7)))) -> FALSE
A95: =Calc!E6 -> Osakeyhtiö | C95: =IF(B17="","",IF(B17=Words!B13,Calc!E7,IF(B17=Words!C13,Calc!E7,IF(B17=Words!D13,Calc!E7)))) -> 280
A96: =Calc!F6 -> Osuuskunta | C96: =IF(B17="","",IF(B17=Words!B14,Calc!F7,IF(B17=Words!C14,Calc!F7,IF(B17=Words!D14,Calc!F7)))) -> FALSE

Sheet 2. Fixed
A1: =Words!A661 -> Kiinteät kustannukset | N1: =Words!$A$21 -> Käyttöohje
J3: 1 | P3: =Words!$A$18 -> Täytä tämän värisiä soluja
A4: =Words!A251 -> Tilikauden pituus -> | C4: 6 | D4: =Words!A321 -> kk | E4: =Words!A321 -> kk | H4: =Words!A348 -> tilikausi | I4: =Words!A323 -> Käyttöpääoma | J4: =Words!A321 -> kk | K4: =C4 -> 6
A5: =Words!A252 -> Palkat työntekijöille | E5: =Calc!B24 -> 0 | F5: =Words!A310 -> Valitse | G5: =Words!A316 -> ALV:n | H5: =E5*$C$4 -> 0 | I5: =E5*J5 -> 0 | J5: =IF($J$3+K5<0,0,$J$3+K5) -> 1 | K5: 0
A6: =Words!A253 -> palkan sivukulut | E6: =Calc!B25 -> 0 | F6: =Words!A311 -> alhaalta | G6: =Words!A317 -> osuus | H6: 0 | I6: 0 | J6: 1 | K6: 0
A7: =Words!A254 -> Työntekijöiden kiinteät palkat | E7: =SUM(E5:E6) -> 0 | F7: =Words!A312 -> oikea | G7: =Words!A318 -> osto- | H7: 0 | I7: =SUM(I5:I6) -> 0 | J7: 1 | K7: 0
A8: =Words!A255 -> Oma nettopalkkatarve | F8: =Words!A313 -> ALV- | G8: =Words!A319 -> hin- | H8: 0 | I8: =E8*J8 -> 0 | J8: 1 | K8: 0
A9: =Words!A256 -> Oma vero | E9: =E8/(1-C9)-E8 -> 0 | F9: =Words!A314 -> kanta | G9: =Words!A320 -> nasta | H9: 0 | I9: 0 | J9: 1 | K9: 0
A10: =Words!A257 -> Yrittäjäeläkkeen perusteena oleva palkkasumma | J10: 1
A11: =Words!A258 -> YEL-vakuutus -> | C11: 0.18798 | E11: =C11*D11/12 -> 0 | H11: =E11*$C$4 -> 0 | I11: =E11*J11 -> 0 | J11: 1 | K11: 0
A12: =Words!A324 -> Poistot | E12: =Calc!B124 -> 0 | H12: 0 | I12: 0
A13: =Words!A324 -> Poistot | E13: =SUM(E12) -> 0
A14: =Words!A259 -> Vuokrat | F14: 0 | G14: =E14-(E14/(1+F14)) -> 0 | H14: =E14*$C$4 -> 0 | I14: =E14*J14 -> 0 | J14: =IF($J$3+K14<0,0,$J$3+K14) -> 1 | K14: 0
A15: =Words!A260 -> Sähkö/lämpö | F15: 0.24 | G15: 0 | H15: 0 | I15: 0 | J15: 1 | K15: 0
A16: =Words!A261 -> Jätehuolto ja siivous | F16: 0.24 | G16: 0 | H16: 0 | I16: 0 | J16: 1 | K16: 0
A17: =Words!A262 -> Muut toimitilakulut | F17: 0.24 | G17: 0 | H17: 0 | I17: 0 | J17: 1 | K17: 0
A18: =Words!A263 -> Kiinteistökulut | E18: =SUM(E14:E17) -> 0 | G18: =SUM(G14:G17) -> 0 | H18: 0 | I18: 0
A19: =Words!A264 -> Korjaukset, huollot | F19: 0.24 | G19: =E19-(E19/(1+F19)) -> 0 | H19: =E19*$C$4 -> 0 | I19: =E19*J19 -> 0 | J19: =IF($J$3+K19<0,0,$J$3+K19) -> 1 | K19: 0
A20: =Words!A265 -> Laitteisto | F20: 0.24 | G20: 0 | H20: 0 | I20: 0 | J20: 1 | K20: 0
A21: =Words!A266 -> Atk ohjelmistot | F21: 0.24 | G21: 0 | H21: 0 | I21: 0 | J21: 1 | K21: 0
A22: =Words!A267 -> Huollot ym | F22: 0.24 | G22: 0 | H22: 0 | I22: 0 | J22: 1 | K22: 0
A23: =Words!A268 -> Kone-,laite ja kalustokulut | E23: =SUM(E19:E22) -> 0 | G23: =SUM(G19:G22) -> 0 | H23: 0 | I23: 0
A24: =Words!A269 -> Rahdit, huolinta | F24: 0.24 | G24: =E24-(E24/(1+F24)) -> 0 | H24: =E24*$C$4 -> 0 | I24: =E24*J24 -> 0 | J24: =IF($J$3+K24<0,0,$J$3+K24) -> 1 | K24: 0
A25: =Words!A270 -> Huolinta | F25: 0.24 | G25: 0 | H25: 0 | I25: 0 | J25: 1 | K25: 0
A26: =Words!A271 -> Kuljetus ja huolinta | E26: =SUM(E24:E25) -> 0 | G26: =SUM(G24:G25) -> 0 | H26: 0 | I26: 0
A27: =Words!A272 -> Matkakulut | F27: 0 | G27: =E27-(E27/(1+F27)) -> 0 | H27: =E27*$C$4 -> 0 | I27: =E27*J27 -> 0 | J27: =IF($J$3+K27<0,0,$J$3+K27) -> 1 | K27: 0
A28: =Words!A273 -> Matkaliput | F28: 0.1 | G28: 0 | H28: 0 | I28: 0 | J28: 1 | K28: 0
A29: =Words!A274 -> Majoitus | F29: 0.1 | G29: 0 | H29: 0 | I29: 0 | J29: 1 | K29: 0
A30: =Words!A275 -> Muut | F30: 0.1 | G30: 0 | H30: 0 | I30: 0 | J30: 1 | K30: 0
A31: =Words!A276 -> Yhteensä | E31: =SUM(E27:E30) -> 0 | G31: =SUM(G27:G30) -> 0 | H31: 0 | I31: 0
A32: =Words!A277 -> Myynti ja markkinointi | F32: 0.24 | G32: =E32-(E32/(1+F32)) -> 0 | H32: =E32*$C$4 -> 0 | I32: =E32*J32 -> 0 | J32: =IF($J$3+K32<0,0,$J$3+K32) -> 1 | K32: 0
A33: =Words!A278 -> Mainonta | F33: 0.24 | G33: 0 | H33: 0 | I33: 0 | J33: 1 | K33: 0
A34: =Words!A279 -> Messut | F34: 0.24 | G34: 0 | H34: 0 | I34: 0 | J34: 1 | K34: 0
A35: =Words!A280 -> Myynnin edistäminen | F35: 0.24 | G35: 0 | H35: 0 | I35: 0 | J35: 1 | K35: 0
A36: =Words!A281 -> Muut | F36: 0.24 | G36: 0 | H36: 0 | I36: 0 | J36: 1 | K36: 0
A37: =Words!A282 -> Yhteensä | E37: =SUM(E32:E36) -> 0 | G37: =SUM(G32:G36) -> 0 | H37: 0 | I37: 0
A38: =Words!A283 -> Edustus | F38: 0.24 | G38: =E38-(E38/(1+F38)) -> 0 | H38: =E38*$C$4 -> 0 | I38: =E38*J41 -> 0 | J38: =IF($J$3+K38<0,0,$J$3+K38) -> 1 | K38: 0
A39: =Words!A284 -> Ammattilehdet ja -kirjallisuus | F39: 0.1 | G39: 0 | H39: 0 | I39: =E39*J39 -> 0 | J39: 1 | K39: 0
A40: =Words!A285 -> Koulutus | F40: 0.24 | G40: 0 | H40: 0 | I40: 0 | J40: 1 | K40: 0
A41: =Words!A286 -> Muuta | F41: 0.24 | G41: 0 | H41: 0 | I41: 0 | J41: 1 | K41: 0
A42: =Words!A287 -> Tutkimus- ja kehittämiskulut | E42: =SUM(E39:E41) -> 0 | G42: =SUM(G39:G41) -> 0 | H42: 0 | I42: 0
A43: =Words!A288 -> Asiantuntijakulut mm kirjanpito | F43: 0.24 | G43: =E43-(E43/(1+F43)) -> 0 | H43: =E43*$C$4 -> 0 | I43: =E43*J43 -> 0 | J43: =IF($J$3+K43<0,0,$J$3+K43) -> 1 | K43: 0
A44: =Words!A289 -> Vahinko- ym. vakuutukset | F44: 0 | G44: 0 | H44: 0 | I44: 0 | J44: 1 | K44: 0
A45: =Words!A290 -> Yrittäjän tapaturmavakuutukset | F45: 0 | G45: 0 | H45: 0 | I45: 0 | J45: 1 | K45: 0
A46: =Words!A291 -> Vastuuvakuutukset | F46: 0 | G46: 0 | H46: 0 | I46: 0 | J46: 1 | K46: 0
A47: =Words!A292 -> Muut vakuutukset | F47: 0 | G47: 0 | H47: 0 | I47: 0 | J47: 1 | K47: 0
A48: =Words!A293 -> Vakuutukset yhteensä | E48: =SUM(E44:E47) -> 0 | G48: =SUM(G44:G47) -> 0 | H48: 0 | I48: 0
A49: =Words!A294 -> Puhelin ja tietoliikenne | F49: 0.24 | G49: =E49-(E49/(1+F49)) -> 0 | H49: =E49*$C$4 -> 0 | I49: =E49*J49 -> 0 | J49: =IF($J$3+K49<0,0,$J$3+K49) -> 1 | K49: 0
A50: =Words!A295 -> Rahaliikenteen kulut | F50: 0.24 | G50: 0 | H50: 0 | I50: 0 | J50: 1 | K50: 0
A51: =Words!A296 -> Toimistokulut | F51: 0.24 | G51: 0 | H51: 0 | I51: 0 | J51: 1 | K51: 0
A52: =Words!A297 -> Muut | F52: 0.24 | G52: 0 | H52: 0 | I52: 0 | J52: 1 | K52: 0
A53: =Words!A298 -> Hallintokulut yhteensä | E53: =SUM(E49:E52) -> 0 | G53: =SUM(G49:G52) -> 0 | H53: 0 | I53: 0
A54: =Words!A299 -> Auton vakuutukset | F54: 0.24 | G54: =E54-(E54/(1+F54)) -> 0 | H54: =E54*$C$4 -> 0 | I54: =E54*J54 -> 0 | J54: =IF($J$3+K54<0,0,$J$3+K54) -> 1 | K54: 0
A55: =Words!A300 -> Auton käyttökulut | F55: 0.24 | G55: 0 | H55: 0 | I55: 0 | J55: 1
A56: =Words!A302 -> Ajoneuvokulut | F56: 0.24 | G56: 0 | H56: 0 | I56: 0 | J56: 1 | K56: 0
A57: =Words!A302 -> Ajoneuvokulut | E57: =SUM(E54:E56) -> 0 | G57: =SUM(G54:G56) -> 0 | H57: 0 | I57: 0
A58: =Words!A303 -> Muut kiinteät kulut | F58: 0.24 | G58: =E58-(E58/(1+F58)) -> 0 | H58: =E58*$C$4 -> 0 | I58: =E58*J58 -> 0 | J58: =IF($J$3+K58<0,0,$J$3+K58) -> 1 | K58: 0
A59: =Words!A304 -> Pakkaustarvikkeet | F59: 0.24 | G59: 0 | H59: 0 | I59: 0 | J59: 1 | K59: 0
A60: =Words!A305 -> Postitus | F60: 0.24 | G60: 0 | H60: 0 | I60: 0 | J60: 1 | K60: 0
A61: =Words!A306 -> Muut | F61: 0.24 | G61: 0 | H61: 0 | I61: 0 | J61: 1 | K61: 0
A62: =Words!A307 -> Muut kiinteät kulut yhteensä | E62: =SUM(E58:E61) -> 0 | G62: =SUM(G58:G61) -> 0 | H62: 0 | I62: 0
A63: =Words!A308 -> Yhteensä | E63: =E7+E11+E37+E26+E18+E53+E48+E42+E38+E23+E57+E62+E31+E43+E9+E8+E12 -> 0 | G63: =G18+G23+G26+G31+G37+G42+G48+G53+G57+G62 -> 0 | H63: =H7+H11+H37+H26+H18+H53+H48+H42+H38+H23+H57+H62+H31+H43+H9+H8+H12 -> 0 | I63: =SUM(I62+I57+I53+I48+I42+I37+I31+I26+I23+I18+I11+I7+I9+I10)+I8 -> 0
A83: Alla olevat eivät tule jäämään näkyviin
A84: YEL | B84: =Setup!C21 -> 1 | C84: =Setup!D21 -> -3 | D84: =Setup!E21 -> 18
A85: =Calc!B27 -> 0.241 | B85: =Setup!C22 -> 2 | C85: =Setup!D22 -> -2 | D85: =Setup!E22 -> 12
A86: =Calc!B28 -> 0.18798 | B86: =Setup!C23 -> 3 | C86: =Setup!D23 -> -1 | D86: =Setup!E23 -> 6
B87: =Setup!C24 -> 4 | C87: =Setup!D24 -> 0 | D87: =Setup!E24 -> 7
B88: =Setup!C25 -> 5 | C88: =Setup!D25 -> 1 | D88: =Setup!E25 -> 8
B89: =Setup!C26 -> 6 | C89: =Setup!D26 -> 2 | D89: =Setup!E26 -> 9
C90: =Setup!D27 -> 3 | D90: =Setup!E27 -> 10
D91: =Setup!E28 -> 11
D92: =Setup!E29 -> 13
D93: =Setup!E30 -> 14
D94: =Setup!E31 -> 15
D95: =Setup!E32 -> 16
D96: =Setup!E33 -> 17
A100: =Calc!A4 -> Alv-kanta // string
A101: =Calc!B4 -> 24%
A102: =Calc!C4 -> 14,%
A103: =Calc!D4 -> 10%
A104: =Calc!E4 -> 0%

Sheet 3. Invest
A1: =Words!A192 -> Investoinnit = rahan tarve | J1: =Words!$A$21 -> Käyttöohje
A3: =Words!A193 -> Nimike | D3: =Words!A243 -> Uusi | E3: =Words!A244 -> Apportti | F3: =Words!A276 -> Yhteensä | G3: =Words!A245 -> Poistot yhteensä | H3: =Words!A246 -> Poisto% | L3: =Words!$A$18 -> Täytä tämän värisiä soluja
A4: =Words!A194 -> Kiinteistö 1 Asuin- tai toimistorakennus | F4: =sum(D4:E4) -> 0 | G4: =if(H4="","",F4*H4) -> 0 | H4: 0.04
A5: =Words!A195 -> Kiinteistö 2 Myymälä, varasto, tehdas, työpaja tai muu vastaava rakennus | F5: 0 | G5: 0 | H5: 0.07
A6: =Words!A198 -> Rakennukset ja rakennelmat | F6: 0 | G6: 0 | H6: 0.2
A7: =Words!A196 -> Maa | F7: 0
A8: =Words!A197 -> Takuuvuokrat | B8: 0 | C8: =Words!A145 -> kk | F8: 0
A9: =Words!A199 -> Kiinteistöt ja maa-alueet yhteensä | D9: =SUM(D4:D8) -> 0 | E9: 0 | F9: 0
A10: =Words!A200 -> Remonttikulut | F10: 0 | G10: 0 | H10: 0.25
A11: =Words!A202 -> Muuta | F11: 0 | G11: 0 | H11: 0.25
F12: 0 | G12: 0 | H12: 0.25
F13: 0 | G13: 0 | H13: 0.25
A14: =Words!A203 -> Pitkävaikutteiset menot yhteensä | D14: =SUM(D10:D13) -> 0 | E14: 0 | F14: 0
A15: =Words!A204 -> Kauppahinta, jos kyseessä liiketoimintakauppa | F15: 0 | G15: =IF(H15="","",F15/H15) -> 0 | H15: 1 | I15: =Words!A484 -> vuotta
A16: =Words!A207 -> Yrityksen perustamiskulut | F16: 0 | G16: =if(H16="","",F16*H16) -> 
F17: 0
F18: 0
A19: =Words!A208 -> Liiketoiminnan käynnistyskulut yhteensä | D19: =SUM(D15:D18) -> 0 | E19: 0 | F19: 0
A20: =Words!A210 -> Atk-ohjelmat | F20: 0 | G20: =IF(H20="","",F20/H20) -> 0 | H20: 1 | I20: =Words!A484 -> vuotta
A21: =Words!A209 -> Atk-laitteet | F21: 0 | G21: =if(H21="","",F21*H21) -> 
F22: 0
F23: 0
F24: 0
F25: 0
F26: 0 | K26: =Words!$A$652 -> Koneet & kal. erittely ----->
A27: =Words!A212 -> Atk-laite ja -ohjelmakulut yhteensä | D27: =SUM(D20:D26) -> 0 | E27: =SUM(E21:E26) -> 0 | F27: 0 | K27: =Words!A656 -> Nimi | P27: =Words!A657 -> Uusi | Q27: =Words!A658 -> Apportti
A28: =Words!A652 -> Koneet & kal. erittely -----> | D28: =P52 -> 0 | E28: 0 | F28: 0 | G28: 0 | H28: 0.25
A29: =Words!A215 -> Koneet ja laitteet | F29: 0
A30: =Words!A216 -> Asennus | F30: 0
A31: =Words!A217 -> Muuta | F31: 0
F32: 0
F33: 0
F34: 0
A35: =Words!A218 -> Kone- ja kalustoinvestoinnit yhteensä | D35: =SUM(D28:D34) -> 0 | E35: 0 | F35: 0
A36: =Words!A221 -> Tarvikkeet | F36: 0
F37: 0
F38: 0
F39: 0
F40: 0
A41: =Words!A222 -> Tarvikkeet yhteensä | D41: =SUM(D36:D40) -> 0 | E41: 0 | F41: 0
A42: =Words!A223 -> Ajoneuvot | F42: 0 | G42: 0 | H42: 0.25
F43: 0
F44: 0
F45: 0
F46: 0
A47: =Words!A224 -> Ajoneuvot yhteensä | D47: =SUM(D42:D46) -> 0 | E47: 0 | F47: 0
A48: =Words!A225 -> Mallit, protot ym kehittämiskulut | F48: 0 | G48: =IF(H48="","",F48/H48) -> 0 | H48: 1 | I48: =Words!A484 -> vuotta
F49: 0 | G49: =if(H49="","",F49*H49) -> 
F50: 0
A51: =Words!A226 -> Mallit, protot ym kehittämiskulut yhteensä | D51: =sum(D48:D50) -> 0 | E51: 0 | F51: 0
A52: =Words!A228 -> Käyntikortit | F52: 0 | K52: =Words!A655 -> Yhteensä | P52: =SUM(P27:P50) -> 0 | Q52: 0
A53: =Words!A229 -> Esitteet | F53: 0
A54: =Words!A230 -> Mainokset | F54: 0
A55: =Words!A231 -> Kyltit | F55: 0
A56: =Words!A232 -> Messut | F56: 0
A57: =Words!A233 -> Internetsivut | F57: 0
A58: =Words!A234 -> Logon / yritysilmeen suunnittelu | F58: 0
F59: 0
F60: 0
A61: =Words!A235 -> Markkinointi-investoinnit yhteensä | D61: =SUM(D52:D60) -> 0 | E61: 0 | F61: 0
F62: 0
F63: 0
F64: 0
A65: =Words!A237 -> Muut yhteensä | D65: =sum(D62:D64) -> 0 | E65: 0 | F65: 0
F66: 0
A67: =Words!A239 -> Alkuvarasto | D67: =sum(D66) -> 0 | E67: 0 | F67: 0
F68: 0
A69: =Words!A241 -> Kaikki investoinnit yhteensä | D69: =D9+D14+D19+D27+D35+D41+D47+D51+D61+D65+D67 -> 0 | E69: 0 | F69: 0 | G69: =SUM(G4:G68) -> 0

Sheet 4. Sales
A1: =Words!A426 -> Myyntibudjetti | O1: =Words!$A$21 -> Käyttöohje
A2: =Words!A427 -> (Vuosimyynti)
Q3: =Words!$A$18 -> Täytä tämän värisiä soluja
D4: =Words!A395 -> Tuote 1 | E4: =Words!A396 -> Tuote 2 | F4: =Words!A397 -> Tuote 3 | G4: =Words!A398 -> Tuote 4 | H4: =Words!A399 -> Tuote 5 | I4: =Words!A400 -> Tuote 6 | J4: =Words!A401 -> Tuote 7 | K4: =Words!A402 -> Tuote 8 | L4: =Words!A458 -> Alv yht
A5: =Words!A442 -> Tuotenimi
A6: =Words!A444 -> Myyntimäärä, yksikköä
A7: =Words!A445 -> Yksikköhinta , sis.alv €
A8: =Words!A446 -> Valitse alv-kanta -> | D8: 0.24 | E8: 0.24 | F8: 0.24 | G8: 0.24 | H8: 0.24 | I8: 0.14 | J8: 0.1 | K8: 0.24
A9: =Words!A447 -> -alv € | D9: =D8*D7 -> 0 | E9: 0 | F9: 0 | G9: 0 | H9: 0 | I9: 0 | J9: 0 | K9: 0 | L9: =(D6*D9)+(E6*E9)+(F6*F9)+(G6*G9)+(H6*H9)+(I6*I9)+(J6*J9)+(K6*K9) -> 0
A10: =Words!A448 -> Ostot/myyntiyksikkö sis alv €
A11: =Words!A446 -> Valitse alv-kanta -> | D11: 0.24 | E11: 0.24 | F11: 0.24 | G11: 0.24 | H11: 0.24 | I11: 0.14 | J11: 0.1 | K11: 0.24
A12: =Words!A449 -> -alv € | D12: =D11*D10 -> 0 | E12: 0 | F12: 0 | G12: 0 | H12: 0 | I12: 0 | J12: 0 | K12: 0 | L12: =(D6*D12)+(E6*E12)+(F6*F12)+(G6*G12)+(H6*H12)+(I6*I12)+(J6*J12)+(K6*K12) -> 0
A13: =Words!A452 -> Valmistustunnit/yksikkö | D13: 0
D16: =Words!A403 -> Tuote 9 | E16: =Words!A404 -> Tuote 10 | F16: =Words!A405 -> Tuote 11 | G16: =Words!A406 -> Tuote 12 | H16: =Words!A407 -> Tuote 13 | I16: =Words!A408 -> Tuote 14 | J16: =Words!A409 -> Tuote 15 | K16: =Words!A410 -> Tuote 16
A17: =Words!A443 -> Tuotenimi
A18: =Words!A444 -> Myyntimäärä, yksikköä
A19: =Words!A445 -> Yksikköhinta , sis.alv € | D19: 0
A20: =Words!A446 -> Valitse alv-kanta -> | D20: 0.24 | E20: 0.24 | F20: 0.24 | G20: 0.24 | H20: 0.24 | I20: 0.24 | J20: 0.24 | K20: 0.24
A21: =Words!A447 -> -alv € | D21: =D20*D19 -> 0 | E21: 0 | F21: 0 | G21: 0 | H21: 0 | I21: 0 | J21: 0 | K21: 0 | L21: =(D18*D21)+(E18*E21)+(F18*F21)+(G18*G21)+(H18*H21)+(I18*I21)+(J18*J21)+(K18*K21) -> 0
A22: =Words!A448 -> Ostot/myyntiyksikkö sis alv €
A23: =Words!A446 -> Valitse alv-kanta -> | D23: 0.24 | E23: 0.24 | F23: 0.24 | G23: 0.24 | H23: 0.24 | I23: 0.24 | J23: 0.24 | K23: 0.24
A24: =Words!A449 -> -alv € | D24: =D23*D22 -> 0 | E24: 0 | F24: 0 | G24: 0 | H24: 0 | I24: 0 | J24: 0 | K24: 0 | L24: =(D18*D24)+(E18*E24)+(F18*F24)+(G18*G24)+(H18*H24)+(I18*I24)+(J18*J24)+(K18*K24) -> 0
A25: =Words!A452 -> Valmistustunnit/yksikkö
E28: =Words!A659 -> Kommentit:
A31: =Words!A454 -> Työtunteja viikossa | C31: 20
A32: =Words!A455 -> Viikkoja vuodessa | C32: 47
A44: =Words!A423 -> Varaston kiertoaika (kk) | E44: 1.5
A46: =Words!A426 -> Myyntibudjetti
D48: =D4 -> Tuote 1 | E48: Tuote 2 | F48: Tuote 3 | G48: Tuote 4 | H48: Tuote 5 | I48: Tuote 6 | J48: Tuote 7 | K48: Tuote 8 | L48: =Words!A412 -> Yhteensä | M48: =Words!A413 -> Huomautuksia
A49: =Words!A354 -> (Vuosimyynti) | D49: =D5 -> 
A50: =Words!A355 -> My-määrä, yksikköä | D50: =D6 -> 
A51: =Words!A356 -> Yksikköhinta , sis.alv € | D51: =D7 -> 
A52: =Words!A357 -> Kokonaismyynti € | D52: =D50*D51 -> 0 | E52: 0 | F52: 0 | G52: 0 | H52: 0 | I52: 0 | J52: 0 | K52: 0 | L52: =SUM(D52:K52) -> 0
A53: =Words!A358 -> -alv € | D53: =D9*D50 -> 0 | E53: 0 | F53: 0 | G53: 0 | H53: 0 | I53: 0 | J53: 0 | K53: 0 | L53: 0
A54: =Words!A359 -> = Liikevaihto € (alv 0%) | D54: =D52-D53 -> 0 | E54: 0 | F54: 0 | G54: 0 | H54: 0 | I54: 0 | J54: 0 | K54: 0 | L54: 0
A55: =Words!A360 -> Ostot/yksikkö sis alv € | D55: =D10 -> 
A56: =Words!A361 -> Kokonaisostot € | D56: =D50*D55 -> 0 | E56: 0 | F56: 0 | G56: 0 | H56: 0 | I56: 0 | J56: 0 | K56: 0 | L56: =SUM(D56:K56) -> 0
A57: =Words!A362 -> -alv € | D57: =D50*D12 -> 0 | E57: 0 | F57: 0 | G57: 0 | H57: 0 | I57: 0 | J57: 0 | K57: 0 | L57: 0
A58: =Words!A363 -> Netto-ostot (alv 0%) | D58: =D56-D57 -> 0 | E58: 0 | F58: 0 | G58: 0 | H58: 0 | I58: 0 | J58: 0 | K58: 0 | L58: 0
A59: =Words!A367 -> Myyntikate € | D59: =D54-D58 -> 0 | E59: 0 | F59: 0 | G59: 0 | H59: 0 | I59: 0 | J59: 0 | K59: 0 | L59: 0 | M59: =C31 -> 20 | N59: =Words!A414 -> t/vko
A60: =Words!A368 -> Myyntikate % | D60: =IF(D54=0,0,1-D58/D54) -> 0 | E60: 0 | F60: 0 | G60: 0 | H60: 0 | I60: 0 | J60: 0 | K60: 0 | L60: 0 | M60: 47 | N60: =Words!A415 -> vkoa
A61: =Words!A369 -> Prosenttiosuus myyntikatteesta | D61: =IF(D60=0,0,D59/$L$77) -> 0 | E61: 0 | F61: 0 | G61: 0 | H61: 0 | I61: 0 | J61: 0 | K61: 0 | M61: =M59*M60 -> 940 | N61: =Words!A416 -> tuntia/v
A62: =Words!A664 -> Myyntikate € / tunti | D62: =IF(D13*D6=0,0,D59/(D13*D6)) -> 0 | E62: 0 | F62: 0 | G62: 0 | H62: 0 | I62: 0 | J62: 0 | K62: 0 | L62: =Words!A412 -> Yhteensä | M62: =Words!A418 -> käytetty | N62: =Words!A419 -> Jäljellä t
A63: =Words!A370 -> Valmistustunnit/yksikkö | D63: =D13 -> 0 | L63: =SUM(D64:K64) -> 0 | M63: =L63 -> 0 | N63: =M61-M63 -> 940
A64: =Words!A371 -> Valmistustunnit yht. | D64: =D50*D63 -> 0 | E64: 0 | F64: 0 | G64: 0 | H64: 0 | I64: 0 | J64: 0 | K64: 0 | L64: =Words!A420 -> Jäljellä | M64: =Words!A421 -> päiviä | N64: =N63/8 -> 117.5
D66: =D16 -> Tuote 9 | E66: Tuote 10 | F66: Tuote 11 | G66: Tuote 12 | H66: Tuote 13 | I66: Tuote 14 | J66: Tuote 15 | K66: Tuote 16 | L66: =Words!A412 -> Yhteensä | M66: =Words!A413 -> Huomautuksia
A67: =Words!A375 -> (Vuosimyynti) | D67: =D17 -> 
A68: =Words!A376 -> My-määrä, yksikköä | D68: =D18 -> 
A69: =Words!A377 -> Yksikköhinta , sis.alv € | D69: =D19 -> 0
A70: =Words!A378 -> Kokonaismyynti € | D70: =D68*D69 -> 0 | E70: 0 | F70: 0 | G70: 0 | H70: 0 | I70: 0 | J70: 0 | K70: 0 | L70: =SUM(D70:K70)+L52 -> 0
A71: =Words!A379 -> -alv € | D71: =D68*D21 -> 0 | E71: 0 | F71: 0 | G71: 0 | H71: 0 | I71: 0 | J71: 0 | K71: 0 | L71: 0
A72: =Words!A380 -> = Liikevaihto € (alv 0%) | D72: =D70-D71 -> 0 | E72: 0 | F72: 0 | G72: 0 | H72: 0 | I72: 0 | J72: 0 | K72: 0 | L72: 0
A73: =Words!A381 -> Ostot/yksikkö sis alv € | D73: =D22 -> 
A74: =Words!A382 -> Kokonaisostot € | D74: =D68*D73 -> 0 | E74: 0 | F74: 0 | G74: 0 | H74: 0 | I74: 0 | J74: 0 | K74: 0 | L74: =SUM(D74:K74)+L56 -> 0
A75: =Words!A383 -> -alv € | D75: =D24*D68 -> 0 | E75: 0 | F75: 0 | G75: 0 | H75: 0 | I75: 0 | J75: 0 | K75: 0 | L75: 0
A76: =Words!A384 -> Netto-ostot (alv 0%) | D76: =D74-D75 -> 0 | E76: 0 | F76: 0 | G76: 0 | H76: 0 | I76: 0 | J76: 0 | K76: 0 | L76: 0
A77: =Words!A388 -> Myyntikate € | D77: =D72-D76 -> 0 | E77: 0 | F77: 0 | G77: 0 | H77: 0 | I77: 0 | J77: 0 | K77: 0 | L77: 0
A78: =Words!A389 -> Myyntikate % | D78: =IF(D72=0,0,1-D76/D72) -> 0 | E78: 0 | F78: 0 | G78: 0 | H78: 0 | I78: 0 | J78: 0 | K78: 0 | L78: 0
A79: =Words!A390 -> Prosenttiosuus myk:sta | D79: =IF(D78=0,0,D77/$L$77) -> 0 | E79: 0 | F79: 0 | G79: 0 | H79: 0 | I79: 0 | J79: 0 | K79: 0
A80: =Words!A664 -> Myyntikate € / tunti | D80: =IF(D18*D25=0,0,D77/(D18*D25)) -> 0 | E80: 0 | F80: 0 | G80: 0 | H80: 0 | I80: 0 | J80: 0 | K80: 0 | L80: =Words!A412 -> Yhteensä | M80: =Words!A418 -> käytetty | N80: =Words!A419 -> Jäljellä t
A81: Valmistustunnit / yksikkö | D81: =D25 ->  | L81: =SUM(D82:K82) -> 0 | M81: =L81+M63 -> 0 | N81: =M61-M81 -> 940
A82: Valmistustunnit yhteensä | D82: =D68*D81 -> 0 | E82: 0 | F82: 0 | G82: 0 | H82: 0 | I82: 0 | J82: 0 | K82: 0 | L82: =Words!A420 -> Jäljellä | M82: =Words!A421 -> päiviä | N82: =N81/8 -> 117.5
A86: =Calc!A4 -> Alv-kanta // string | C86: Var. KPO
A87: =Calc!B4 -> 24% | C87: =Calc!B$86 -> 0
A88: =Calc!C4 -> 14,% | C88: =Calc!C$86 -> 0.25
A89: =Calc!D4 -> 10% | C89: =Calc!D$86 -> 0.5
A90: =Calc!E4 -> 0% | C90: =Calc!E$86 -> 0.75
C91: =Calc!F$86 -> 1
C92: =Calc!G$86 -> 1.5
C93: =Calc!H$86 -> 2
C94: =Calc!I$86 -> 3
C95: =Calc!J$86 -> 4
C96: =Calc!K$86 -> 5
C97: =Calc!L$86 -> 7
C98: =Calc!M$86 -> 10
C99: =Calc!N$86 -> 12

Sheet 5. Salaries
A1: =Words!A327 -> Työntekijöiden palkat | M1: =Words!$A$21 -> Käyttöohje | T1: =Words!A772 -> Sivukulut% vuonna 2024
T2: =Words!A773 -> Työeläkemaksu | Z2: 24.81
D3: =Words!A328 -> Kuukausipalkka tai | E3: =Words!A329 -> tuntipalkka | I3: =Words!A339 -> Vuosi- | J3: =Words!A341 -> Sivukulut | K3: =Words!A342 -> Sivukulut | O3: =Words!$A$18 -> Täytä tämän värisiä soluja | T3: =Words!A774 -> Työttömyysvakuutusmaksu (palkkat alle 2370000/v) | Z3: 0.27
A4: =Words!A330 -> Hlö | B4: =Words!A332 -> Nimike | D4: =Words!A333 -> €/kk | E4: =Words!A335 -> €/t | F4: =Words!A336 -> t/pv | G4: =Words!A337 -> p/kk | H4: =Words!A334 -> kk/V | I4: =Words!A340 -> palkka | J4: % | K4: =Words!A343 -> vuodessa | N4: =Words!A720 -> Syötä kuukausipalkat sarakkeeseen D | T4: =Words!A775 -> Tapaturmavakuutusmaksu keskimäärin | Z4: 0.7
A5: 1 | E5: 0 | F5: 0 | G5: 0 | H5: 11 | I5: =IF(D5="",E5*F5*G5*H5,D5*H5) -> 0 | J5: =Calc!$F$31/100 -> 0.62 | K5: =I5*J5 -> 0 | N5: =Words!A721 -> Syötä tuntipalkat sarakkeeseen E | T5: =Words!A776 -> Ryhmähenkivakuutusmaksu keskimäärin | Z5: 0.06
A6: 2 | E6: 0 | F6: 0 | G6: 0 | H6: 11 | I6: 0 | J6: =Calc!$F$31/100 -> 0.62 | K6: 0 | T6: =Words!A777 -> Sairasvakuutusmaksu | Z6: 1.16
A7: 3 | I7: 0 | J7: =Calc!$F$31/100 -> 0.62 | K7: 0
A8: 4 | I8: 0 | J8: =Calc!$F$31/100 -> 0.62 | K8: 0
A9: 5 | I9: 0 | J9: =Calc!$F$31/100 -> 0.62 | K9: 0
A10: 6 | I10: 0 | J10: =Calc!$F$31/100 -> 0.62 | K10: 0
A11: 7 | I11: 0 | J11: =Calc!$F$31/100 -> 0.62 | K11: 0
A12: 8 | I12: 0 | J12: =Calc!$F$31/100 -> 0.62 | K12: 0
A13: 9 | I13: 0 | J13: =Calc!$F$31/100 -> 0.62 | K13: 0
A14: 10 | I14: 0 | J14: =Calc!$F$31/100 -> 0.62 | K14: 0
A15: =Words!A331 -> Yht | I15: =SUM(I5:I14) -> 0 | K15: =SUM(K5:K14) -> 0
A17: =Words!A326 -> Yrittäjän oma palkka
D19: =Words!A328 -> Kuukausipalkka tai | I19: =Words!A339 -> Vuosi- | J19: =Words!A341 -> Sivukulut | K19: =Words!A342 -> Sivukulut
A20: =Words!A330 -> Hlö | B20: =Words!A332 -> Nimike | D20: =Words!A333 -> €/kk | H20: =Words!A350 -> kk | I20: =Words!A340 -> palkka | J20: % | K20: =Words!A343 -> vuodessa
A21: 1 | D21: =Calc!L22 -> 0 | H21: 11 | I21: =IF(D21="",E21*F21*G21*H21,D21*H21) -> 0 | J21: =Calc!$F$26/100 -> 0.0116 | K21: =IF('1. Project'!B17=Words!A13,I21*J21,0) -> 0
A22: 2 | I22: 0 | J22: =Calc!$F$26/100 -> 0.0116 | K22: =I22*J22 -> 0
A23: =Words!A331 -> Yht | I23: =SUM(I21:I22) -> 0 | K23: =SUM(K21:K22) -> 0
I25: =Words!A350 -> kk | J25: =Calc!B55 -> 6 | K25: =Words!A347 -> vuosi | L25: =Words!A348 -> tilikausi
F26: =Words!A344 -> Palkat | I26: =I15/J25 -> 0 | K26: =I15 -> 0 | L26: =J25*I26 -> 0
F27: =Words!A345 -> Siv.kul | I27: =(K15+K23)/J25 -> 0 | K27: =K15 -> 0 | L27: =J25*I27 -> 0
F28: =Words!A346 -> Yhteensä | I28: =SUM(I26:I27) -> 0 | K28: =SUM(K26:K27) -> 0 | L28: 0
F30: =Words!A349 -> Kilometrikorvauslaskuri
F31: =Words!A351 -> km | G31: 0 | H31: =Setup!B36 -> 0.53 | I31: =G31*H31 -> 0

Sheet 6. Balance Sheet
B1: =Words!A144 -> Aloittava tase | L1: =Words!$A$21 -> Käyttöohje
B3: =Words!A146 -> Rahan tarve (investoinnit) | F3: =Words!A165 -> Rahan lähteet | I3: =Words!A184 -> Korko | J3: =Words!A186 -> Aika (v) | N3: =Words!$A$18 -> Täytä tämän värisiä soluja
B4: =Words!A147 -> Kiinteistöt ja maa-alueet | D4: =Calc!B34 -> 0 | F4: =Words!A166 -> Pankkilaina | I4: 0.057 | J4: 6
B5: =Words!A148 -> Vuokratakuu | D5: =Calc!B35 -> 0
B6: =Words!A125 -> Pitkävaikutteiset menot | D6: =Calc!B36 -> 0 | F6: =Words!A168 -> Muu laina | I6: 0.05 | J6: 3
B7: =Words!A58 -> Liiketoiminnan kauppahinta | D7: =Calc!B37 -> 0 | F7: =Words!A169 -> Vieras pääoma yht. | H7: =SUM(H4:H6) -> 0
B8: =Words!A59 -> Koneet ja kalusteet | D8: =Calc!B39 -> 0 | F8: =Words!A170 -> Osakepääoma rahana
B9: =Words!A223 -> Ajoneuvot | D9: =Calc!B42 -> 0 | F9: =Words!A171 -> Osakepääoma apporttina | H9: =Calc!B115 -> 0
B10: =Words!A225 -> Mallit, protot ym kehittämiskulut | D10: =Calc!B43 -> 0 | F10: =Words!A172 -> Muu oma pääoma rahana | H10: 0
B11: =Words!A210 -> Atk-ohjelmat | D11: =Calc!B52 -> 0 | F11: =Words!A173 -> Muu oma pääoma app:na | H11: =Calc!B117 -> 0 | L11: =Words!$A$472 -> Tasevertailu
B12: =Words!A160 -> Alkuvarasto | D12: =Calc!B47 -> 0 | F12: =Words!A174 -> Yritystuet
B13: =Words!A157 -> Markkinointi-investoinnit | D13: =Calc!B44 -> 0 | F13: =Words!A175 -> Oma pääoma yht. | H13: =SUM(H8:H12) -> 0 | N13: =Words!$A$474 -> Käyttöpääoma yhteensä | P13: =Calc!$B$79 -> 0
B14: =Words!A158 -> Kaupparekisterimaksu | D14: =Calc!B45 -> 280 | H14: =Words!A180 -> Käyttöpääoman korjaus | N14: =Words!$A$475 -> Käyttöpääoman korjaus
B15: =Words!A159 -> Muut yhteensä | D15: =Calc!B46 -> 0 | E15: =SUM(D4:D15) -> 280 | H15: =Calc!B51 -> 
H16: =Words!A182 -> Kassareservi/rahoitustarve | N16: =Words!$A$477 -> Kassareservi
B17: =Words!A161 -> Kassa | D17: =Calc!B48 ->  | H17: =H19-D19 -> -280
B18: =Words!A162 -> Käyttöpääoma yht. | D18: =Calc!B79 -> 0 | N18: =Words!$A$479 -> Investoinnit yhteensä = rahoitustarve | P18: =Calc!$C$49 -> 280
B19: =Words!A163 -> Yhteensä | D19: =SUM(D4:D18) -> 280 | F19: =Words!A177 -> Yhteensä | H19: =H7+H13 -> 0 | I19: =Words!A187 -> Täytyy mennä tasan | N19: =Words!$A$480 -> Rahoitus yhteensä | P19: =Calc!$B$110 -> 0
N20: =Words!$A$481 -> Kassareservi/lisärahoitustarve | P20: =P18-P19 -> 280
C23: =IF(Calc!B85=0,"",Words!A423) -> Varaston kiertoaika (kk) | D23: =IF(Calc!B85=0,"",Calc!B85) -> 1.5

Sheet Profit
A1: =Words!A52 -> Aloittava tase
A3: =(Words!A54) -> Rahan tarve (investoinnit) | E3: =Words!A73 -> Rahan lähteet | H3: =Words!A86 -> Korko | I3: =Words!A87 -> Laina-aika (v)
A4: =Words!A55 -> Kiinteistöt ja maa-alueet | C4: =Calc!B34 -> 0 | E4: =Words!A75 -> Pankkilaina | G4: =Calc!B60 ->  | H4: =Calc!C60 -> 0.057 | I4: =Calc!D60 -> 6
A5: =Words!A56 -> Vuokratakuu | C5: =Calc!B35 -> 0 | E5: =Words!A77 -> Muu laina | G5: =Calc!B62 ->  | H5: =Calc!C62 -> 0.05 | I5: =Calc!D62 -> 3
A6: =Words!A125 -> Pitkävaikutteiset menot | C6: =Calc!B36 -> 0 | E6: =Words!A78 -> Vieras pääoma yht. | G6: =SUM(G4:G5) -> 0
A7: =Words!A58 -> Liiketoiminnan kauppahinta | C7: =Calc!B37 -> 0
A8: =Words!A59 -> Koneet ja kalusteet | C8: =Calc!B40 -> 0
A9: =Words!A223 -> Ajoneuvot | C9: =Calc!B42 -> 0 | E9: =Words!A79 -> Osakepääoma rahana | G9: =Calc!B114 -> 
A10: =Words!A225 -> Mallit, protot ym kehittämiskulut | C10: =Calc!B43 -> 0 | E10: =Words!A80 -> Osakepääoma apporttina | G10: =Calc!B115 -> 0
A11: =Words!A210 -> Atk-ohjelmat | C11: =Calc!B52 -> 0 | E11: =Words!A81 -> Muu oma pääoma rahana | G11: =Calc!B116 -> 0
A12: =Words!A69 -> Kassareservi | C12: =Calc!B48 ->  | E12: =Words!A82 -> Muu oma pääoma apporttina | G12: =Calc!B117 -> 0
A13: =Words!A70 -> Käyt.pääoma yht. | C13: =Calc!B49 -> 0 | E13: =Words!A83 -> Yritystuet | G13: =Calc!B118 -> 
A14: =Words!A68 -> Alkuvarasto | C14: =Calc!B47 -> 0 | E14: =Words!A84 -> Oma pääoma yht. | G14: =SUM(G9:G13) -> 0
A15: =Words!A66 -> Kaupparekisterimaksu | C15: =Calc!B45 -> 280
A16: =Words!A67 -> Muut yhteensä | C16: =Calc!B46 -> 0 | E16: =Words!A85 -> Yhteensä | G16: =G6+G14 -> 0
A17: =Words!A157 -> Markkinointi-investoinnit | C17: =Calc!B44 -> 0
A18: =Words!A153 -> Kalusteet | C18: =Calc!B40 -> 0
A20: =Words!A71 -> Yhteensä | C20: =SUM(C4:C19) -> 280
A23: =Words!A88 -> Kustannusrakenne / myyntitarve ("tuloslaskelma")
E24: =Words!A90 -> Kuukausi | F24: =Words!A91 -> Tilikausi | G24: ='2. Fixed'!C4&" "&Words!A136 -> 6 kk
A25: =Words!A93 -> Oma nettopalkka(tarve) | E25: =Calc!B122 ->  | F25: =Calc!C122 -> 0
A26: =Words!A94 -> + Lainojen lyhennys | E26: =Calc!B123 -> 0 | F26: =Calc!C123 -> 0
A27: =Words!A95 -> - Poistot | E27: =Calc!B124 -> 0 | F27: =Calc!C124 -> 0
A28: =Words!A96 -> = Tulot verojen jälkeen | E28: =Calc!B125 -> 0 | F28: =Calc!C125 -> 0
A29: =Words!A97 -> + Verot | C29: =Calc!B22 ->  | E29: =Calc!B129 -> 0 | F29: =Calc!C129 -> 0
A30: =Words!A98 -> = Bruttotulo(tarve) | E30: =Calc!B130 -> 0 | F30: =Calc!C130 -> 0
A31: =Words!A99 -> Lainojen korot | E31: =Calc!B131 -> 0 | F31: =Calc!C131 -> 0
A32: =Words!A100 -> = Käyttökate(tarve) | E32: =Calc!B132 -> 0 | F32: =Calc!C132 -> 0
A33: =Words!A101 -> Kiinteät kulut | C33: (alv 0%) | E33: =Calc!B133 ->  | F33: =Calc!C133 -> 
B34: ="+"&Words!A103 -> +Palkat ja palkkiot | E34: =Calc!B134 -> 0 | F34: =Calc!C134 -> 0
B35: ="+"&Words!A104 -> +Henkilösivukulut | E35: =(Calc!B135) -> 0 | F35: =Calc!C135 -> 0
B36: ="+"&Words!A105 -> +Muut henkilöstösivukulut (Yrittäjän YEL) | E36: =Calc!B136 -> 0 | F36: =Calc!C136 -> 0
B37: ="+"&Words!A106 -> +Kiinteistökulut | E37: =Calc!B137 -> 0 | F37: =Calc!C137 -> 0
B38: ="+"&Words!A107 -> +Kone-,laite-, ja kalustokulut | E38: =Calc!B138 -> 0 | F38: =Calc!C138 -> 0
B39: ="+"&Words!A108 -> +Kuljetus- ja huolintakulut | E39: =Calc!B139 -> 0 | F39: =Calc!C139 -> 0
B40: ="+"&Words!A109 -> +Ajoneuvokulut | E40: =Calc!B140 -> 0 | F40: =Calc!C140 -> 0
B41: ="+"&Words!A110 -> +Matkakulut | E41: =Calc!B141 -> 0 | F41: =Calc!C141 -> 0
B42: ="+"&Words!A111 -> +Myynti ja markkinointikulut | E42: =Calc!B142 -> 0 | F42: =Calc!C142 -> 0
B43: ="+"&Words!A112 -> +Edustuskulut | E43: =Calc!B143 -> 0 | F43: =Calc!C143 -> 0
B44: ="+"&Words!A113 -> +Tutkimus- ja kehittämiskulut | E44: =Calc!B144 -> 0 | F44: =Calc!C144 -> 0
B45: ="+"&Words!A114 -> +Asiantuntijakulut | E45: =Calc!B145 -> 0 | F45: =Calc!C145 -> 0
B46: ="+"&Words!A115 -> +Vakuutukset | E46: =Calc!B146 -> 0 | F46: =Calc!C146 -> 0
B47: ="+"&Words!A116 -> +Hallintokulut | E47: =Calc!B147 -> 0 | F47: =Calc!C147 -> 0
B48: ="+"&Words!A117 -> +Muut liiketoiminnan kulut | E48: =Calc!B148 -> 0 | F48: =Calc!C148 -> 0
A49: =Words!A119 -> Kiinteät yhteensä (alv 0%) | E49: =Calc!B149 -> 0 | F49: =Calc!C149 -> 0
A50: =Words!A120 -> =Myyntikate(tarve) | E50: =Calc!B150 -> 0 | F50: =Calc!C150 -> 0
A51: =Words!A121 -> +Aineet & tarvikkeet (-ALV) | E51: =Calc!B151 -> 0 | F51: =Calc!C151 -> 0
A52: =Words!A122 -> =liikevaihto(tarve) | E52: =Calc!B152 -> 0 | F52: =Calc!C152 -> 0
A53: =Words!A123 -> +alv edelliseen | D53: =Calc!B306 -> 0 | E53: =Calc!B153 -> 0 | F53: =Calc!C153 -> 0
A54: =Words!A124 -> Kokonaismyynti(tarve) | E54: =Calc!B154 -> 0 | F54: =Calc!C154 -> 0
E56: =Words!A129 -> kk | F56: =Words!A130 -> viikko | G56: =Words!A131 -> päivä | H56: =Words!A132 -> tunti
A57: =Words!A127 -> Myyntitarve euroa per | E57: =F54/D58 -> 0 | F57: =E57/D59 -> 0 | G57: =F57/H58 -> 0 | H57: =G57/H59 -> 0
A58: =Words!A128 -> Aikamäärittelyt | C58: =Words!A134 -> 1v = | D58: ='2. Fixed'!C4 -> 6 | E58: =Words!A136 -> kk | G58: =Words!A138 -> 1vko = | H58: 5 | I58: =Words!A139 -> pv
C59: =Words!A135 -> 1kk = | D59: 4.35 | E59: =Words!A137 -> vko | G59: =Words!A140 -> 1pv = | H59: 8 | I59: =Words!A141 -> h
A64: =Words!$A$660 -> Tulosvertailu ja kriittinen piste
A66: =Words!$A$462 -> Herkkyysanalyysi | J66: =Words!$A$470 -> Kriittinen piste
E67: 1 | F67: 0.95 | G67: 0.9 | H67: 0.8 | I67: 0.7
A68: =Words!$A$464 -> Myyntitarve(alv 0%) | E68: =Calc!$B$101 -> 0 | F68: =Calc!$B$101 -> 0 | G68: =Calc!$B$101 -> 0 | H68: =Calc!$B$101 -> 0 | I68: =Calc!$B$101 -> 0 | J68: =IF(E69=0,0,E68/E69) -> 0
A69: =Words!$A$463 -> Liikevaihto (alv 0%) | E69: =Calc!$B$91 -> 0 | F69: =E69*F67 -> 0 | G69: =E69*G67 -> 0 | H69: =E69*H67 -> 0 | I69: =E69*I67 -> 0
A70: =Words!$A$466 -> Erotus | E70: =E69-E68 -> 0 | F70: 0 | G70: 0 | H70: 0 | I70: 0

Sheet 3-year-forecast
A1: =Words!A662 -> 3 v tulosennuste | L1: =Words!$A$21 -> Käyttöohje
A3: =Words!A486 -> Myyntien muutos prosenttia edelliseen vuoteen | E3: 0 | G3: 0 | N3: =Words!$A$18 -> Täytä tämän värisiä soluja
A4: =Words!A487 -> Ostojen muutos prosenttia edelliseen vuoteen | E4: 0 | G4: 0
A5: =Words!A488 -> Kiinteiden kulujen muutos prosenttia edelliseen vuoteen | E5: 0 | G5: 0.3
A6: =Words!A538 -> Huom! Voit pudotusvalikoiden lisäksi korjata lukuja suoraan 2. ja 3. vuoden kohdalle taulukkoon!
D7: ="1 "&Words!A485 -> 1 vuosi | E7: >->> | F7: ="2 "&Words!A485 -> 2 vuosi | G7: >->> | H7: ="3 "&Words!A485 -> 3 vuosi
A8: =Words!A489 -> Myyntituotot | D8: =Calc!B215 -> 0 | F8: =($E$3+1)*D8 -> 0 | H8: =($G$3+1)*F8 -> 0
A9: =Words!A490 -> Myynnin oikaisuerät | D9: =Calc!B216 -> 0 | F9: =Calc!C216 -> 0 | H9: =Calc!D216 -> 0
A10: =Words!A491 -> Liikevaihto | D10: =Calc!B217 -> 0 | F10: =Calc!C217 -> 0 | H10: =Calc!D217 -> 0
D12: =Calc!B219 -> 
A13: =Words!A494 -> Liiketoiminnan muut tuotot | D13: =Calc!B220 ->  | F13: =($E$3+1)*D13 -> 0 | H13: =($G$3+1)*F13 -> 0
A14: =Words!A495 -> Tuotot yhteensä | D14: =Calc!B221 -> 0 | F14: =SUM(F10:F13) -> 0 | H14: =SUM(H10:H13) -> 0
A15: =Words!A496 -> Materiaalit ja palvelut | D15: =Calc!B222 ->  | F15: =($E$4+1)*D15 -> 0 | H15: =($G$4+1)*F15 -> 0
A16: =Words!A497 -> Ostot tilikauden aikana | D16: =Calc!B223 -> 0 | F16: 0 | H16: 0
A17: =Words!A498 -> Ostojen oikaisuerät | D17: =Calc!B224 -> 0 | F17: 0 | H17: 0
A18: =Words!A499 -> Varastomuutos | D18: =Calc!B225 -> 
A19: =Words!A500 -> Ulkopuoliset palvelut | D19: =Calc!B226 ->  | F19: =($E$3+1)*D19 -> 0 | H19: =($G$5+1)*F19 -> 0
A20: =Words!A501 -> Henkilöstökulut | D20: =Calc!B227 ->  | F20: 0 | H20: 0
A21: =Words!A502 -> Palkat ja palkkiot | D21: =Calc!B228 -> 0 | F21: =($E$5+1)*D21 -> 0 | H21: 0
A22: =Words!A503 -> Henkilösivukulut | D22: =Calc!B229-'5. Salaries'!K23 -> 0 | F22: 0 | H22: 0
A23: =Words!A504 -> Muut henkilöstösivukulut | D23: =Calc!B230 ->  | F23: 0 | H23: 0
A24: =Words!A505 -> Poistot | D24: =Calc!B231*-1 -> 0 | F24: =D24 -> 0 | H24: =F24 -> 0
A25: =Words!A506 -> Liiketoiminnan muut kulut | D25: =Calc!B232 ->  | F25: =($E$5+1)*D25 -> 0 | H25: =($G$5+1)*F25 -> 0
A26: =Words!A507 -> Vapaaehtoiset henkilöstökulut | D26: =Calc!B233 ->  | F26: 0 | H26: 0
A27: =Words!A508 -> Toimitila- ja kiinteistökulut | D27: =Calc!B234 -> 0 | F27: 0 | H27: 0
A28: =Words!A509 -> Kone-, laite-, ja kalustokulut | D28: =Calc!B235 -> 0 | F28: 0 | H28: 0
A29: =Words!A510 -> Kuljetus-ja huolintakulut | D29: =Calc!B236 -> 0 | F29: 0 | H29: 0
A30: =Words!A511 -> Ajoneuvokulut | D30: =Calc!B237 -> 0 | F30: 0 | H30: 0
A31: =Words!A512 -> Matkakulut | D31: =Calc!B238 -> 0 | F31: 0 | H31: 0
A32: =Words!A513 -> Myynti- ja markkinointikulut | D32: =Calc!D239 -> 0 | F32: =($E$5+1)*Calc!B239 -> 0 | H32: 0
A33: =Words!A514 -> Edustuskulut | D33: =Calc!B240 -> 0 | F33: =($E$5+1)*D33 -> 0 | H33: 0
A34: =Words!A515 -> Tutkimus- ja kehittämiskulut | D34: =Calc!B241 -> 0 | F34: 0 | H34: 0
A35: =Words!A516 -> Asiantuntijakulut | D35: =Calc!B242 -> 0 | F35: 0 | H35: 0
A36: =Words!A517 -> Vakuutuskulut | D36: =Calc!B243 -> 0 | F36: 0 | H36: 0
A37: =Words!A518 -> Hallintokulut | D37: =Calc!B244 -> 0 | F37: 0 | H37: 0
A38: =Words!A519 -> Muut liiketoiminnan kulut | D38: =Calc!B245 -> 0 | F38: 0 | H38: 0
A39: =Words!A520 -> Liikevoitto -tappio | D39: =SUM(D14:D38) -> 0 | F39: =SUM(F14:F38) -> 0 | H39: =SUM(H14:H38) -> 0
A40: =Words!A521 -> Rahoitustuotot ja -kulut | D40: =Calc!B247 -> 0 | F40: =-Calc!G63 -> 0 | H40: =-Calc!H63 -> 0
A41: =Words!A522 -> Voitto (tappio) ennen sat. eriä | D41: =SUM(D39:D40) -> 0 | F41: =SUM(F39:F40) -> 0 | H41: =SUM(H39:H40) -> 0
A45: =Words!A526 -> Voitto (tappio) ennen tilinpäätössiirtoja ja veroja | D45: =SUM(D41:D44) -> 0 | F45: =SUM(F41:F44) -> 0 | H45: =SUM(H41:H44) -> 0
A46: =Words!A527 -> Tilinpäätössiirrot | D46: =Calc!B253 ->  | F46: =($E$5+1)*D46 -> 0 | H46: =($G$5+1)*F46 -> 0
A47: =Words!A528 -> Tuloverot | D47: =Calc!B254 -> 0 | F47: =Calc!C254 -> 0 | H47: =Calc!D254 -> 0
D48: =Calc!B255 -> 
A49: =Words!A530 -> Tilikauden voitto (tappio) | D49: =SUM(D45:D48) -> 0 | F49: =SUM(F45:F48) -> 0 | H49: =SUM(H45:H48) -> 0
A51: =Words!A532 -> Alkukassa | D51: =Calc!B258 -> 0 | F51: =D55 -> 0 | H51: =F55 -> 0
A52: =Words!A533 -> Tilikauden voitto (tappio) | D52: =D49 -> 0 | F52: =F49 -> 0 | H52: =H49 -> 0
A54: =Words!A535 -> Lainojen lyhennys | D54: =Calc!B261 -> 0 | F54: =Calc!B264 -> 0 | H54: =Calc!B265 -> 0
A55: =Words!A536 -> Loppukassa | D55: =Calc!B262 -> 0 | F55: =F51+F52+F53+F54 -> 0 | H55: =H51+H52+H53+H54 -> 0
A81: Lista
A82: =Calc!B$212 -> 0
A83: =Calc!C$212 -> 0.03
A84: =Calc!D$212 -> 0.05
A85: =Calc!E$212 -> 0.1
A86: =Calc!F$212 -> 0.2
A87: =Calc!G$212 -> 0.3
A88: =Calc!H$212 -> 0.5
A89: =Calc!I$212 -> 0.75
A90: =Calc!J$212 -> 1
A91: =Calc!K$212 -> 1.5
A92: =Calc!L$212 -> 2
A93: =Calc!M$212 -> 3
A94: =Calc!N$212 -> 5

Sheet Cash Flow Statement
A1: =Words!A731 -> Kassavirtalaskelma
B2: =YEAR('1. Project'!$B$15) -> 1899
B3: =Words!A757 -> Tammi | C3: =Words!A758 -> Helmi | D3: =Words!A759 -> Maalis | E3: =Words!A760 -> Huhti | F3: =Words!A761 -> Touko | G3: =Words!A762 -> Kesä | H3: =Words!A763 -> Heinä | I3: =Words!A764 -> Elo | J3: =Words!A765 -> Syys | K3: =Words!A766 -> Loka | L3: =Words!A767 -> Marras | M3: =Words!A768 -> Joulu | N3: =Words!A769 -> Yhteensä
A4: =Words!A745 -> LIIKETOIMINTA
A5: =Words!A746 -> Liikevaihto | B5: ='4. Sales'!$L$72/12 -> 0 | C5: ='4. Sales'!$L$72/12 -> 0 | D5: ='4. Sales'!$L$72/12 -> 0 | E5: ='4. Sales'!$L$72/12 -> 0 | F5: ='4. Sales'!$L$72/12 -> 0 | G5: ='4. Sales'!$L$72/12 -> 0 | H5: ='4. Sales'!$L$72/12 -> 0 | I5: ='4. Sales'!$L$72/12 -> 0 | J5: ='4. Sales'!$L$72/12 -> 0 | K5: ='4. Sales'!$L$72/12 -> 0 | L5: ='4. Sales'!$L$72/12 -> 0 | M5: ='4. Sales'!$L$72/12 -> 0 | N5: =sum(B5:M5) -> 0
A6: =Words!A747 -> Muut tuotot
A7: =Words!A748 -> YHTEENSÄ | B7: =B5+B6 -> 0 | C7: 0 | D7: 0 | E7: 0 | F7: 0 | G7: 0 | H7: 0 | I7: 0 | J7: 0 | K7: 0 | L7: 0 | M7: 0 | N7: =sum(B7:M7) -> 0
A8: =Words!A749 -> ALV myynnistä | B8: ='4. Sales'!$L$71/12 -> 0 | C8: ='4. Sales'!$L$71/12 -> 0 | D8: ='4. Sales'!$L$71/12 -> 0 | E8: ='4. Sales'!$L$71/12 -> 0 | F8: ='4. Sales'!$L$71/12 -> 0 | G8: ='4. Sales'!$L$71/12 -> 0 | H8: ='4. Sales'!$L$71/12 -> 0 | I8: ='4. Sales'!$L$71/12 -> 0 | J8: ='4. Sales'!$L$71/12 -> 0 | K8: ='4. Sales'!$L$71/12 -> 0 | L8: ='4. Sales'!$L$71/12 -> 0 | M8: ='4. Sales'!$L$71/12 -> 0 | N8: 0
A9: =Words!A754 -> Ostot | B9: ='4. Sales'!$L$76/12*-1+'3. Invest'!F41*-1 -> 0 | C9: ='4. Sales'!$L$76/12*-1 -> 0 | D9: ='4. Sales'!$L$76/12*-1 -> 0 | E9: ='4. Sales'!$L$76/12*-1 -> 0 | F9: ='4. Sales'!$L$76/12*-1 -> 0 | G9: ='4. Sales'!$L$76/12*-1 -> 0 | H9: ='4. Sales'!$L$76/12*-1 -> 0 | I9: ='4. Sales'!$L$76/12*-1 -> 0 | J9: ='4. Sales'!$L$76/12*-1 -> 0 | K9: ='4. Sales'!$L$76/12*-1 -> 0 | L9: ='4. Sales'!$L$76/12*-1 -> 0 | M9: ='4. Sales'!$L$76/12*-1 -> 0 | N9: 0
A10: =Words!A733 -> Yrittäjän oma palkka* | B10: =Calc!$K$24*-1 -> 0 | C10: =Calc!$K$24*-1 -> 0 | D10: =Calc!$K$24*-1 -> 0 | E10: =Calc!$K$24*-1 -> 0 | F10: =Calc!$K$24*-1 -> 0 | G10: =Calc!$K$24*-1 -> 0 | H10: =Calc!$K$24*-1 -> 0 | I10: =Calc!$K$24*-1 -> 0 | J10: =Calc!$K$24*-1 -> 0 | K10: =Calc!$K$24*-1 -> 0 | L10: =Calc!$K$24*-1 -> 0 | M10: =Calc!$K$24*-1 -> 0 | N10: 0
A11: =Words!A742 -> Työntekijöiden palkat | B11: =Calc!$B$134*-1 -> 0 | C11: =Calc!$B$134*-1 -> 0 | D11: =Calc!$B$134*-1 -> 0 | E11: =Calc!$B$134*-1 -> 0 | F11: =Calc!$B$134*-1 -> 0 | G11: =Calc!$B$134*-1 -> 0 | H11: =Calc!$B$134*-1 -> 0 | I11: =Calc!$B$134*-1 -> 0 | J11: =Calc!$B$134*-1 -> 0 | K11: =Calc!$B$134*-1 -> 0 | L11: =Calc!$B$134*-1 -> 0 | M11: =Calc!$B$134*-1 -> 0 | N11: 0
A12: =Words!A743 -> Sivukulut | B12: =Calc!$B$135*-1 -> 0 | C12: =Calc!$B$135*-1 -> 0 | D12: =Calc!$B$135*-1 -> 0 | E12: =Calc!$B$135*-1 -> 0 | F12: =Calc!$B$135*-1 -> 0 | G12: =Calc!$B$135*-1 -> 0 | H12: =Calc!$B$135*-1 -> 0 | I12: =Calc!$B$135*-1 -> 0 | J12: =Calc!$B$135*-1 -> 0 | K12: =Calc!$B$135*-1 -> 0 | L12: =Calc!$B$135*-1 -> 0 | M12: =Calc!$B$135*-1 -> 0 | N12: 0
A13: =Words!A744 -> YEL | B13: =Calc!$B$136*-1 -> 0 | C13: =Calc!$B$136*-1 -> 0 | D13: =Calc!$B$136*-1 -> 0 | E13: =Calc!$B$136*-1 -> 0 | F13: =Calc!$B$136*-1 -> 0 | G13: =Calc!$B$136*-1 -> 0 | H13: =Calc!$B$136*-1 -> 0 | I13: =Calc!$B$136*-1 -> 0 | J13: =Calc!$B$136*-1 -> 0 | K13: =Calc!$B$136*-1 -> 0 | L13: =Calc!$B$136*-1 -> 0 | M13: =Calc!$B$136*-1 -> 0 | N13: 0
A14: =Words!A106 -> Kiinteistökulut | B14: =Calc!$B$137*-1 -> 0 | C14: =Calc!$B$137*-1 -> 0 | D14: =Calc!$B$137*-1 -> 0 | E14: =Calc!$B$137*-1 -> 0 | F14: =Calc!$B$137*-1 -> 0 | G14: =Calc!$B$137*-1 -> 0 | H14: =Calc!$B$137*-1 -> 0 | I14: =Calc!$B$137*-1 -> 0 | J14: =Calc!$B$137*-1 -> 0 | K14: =Calc!$B$137*-1 -> 0 | L14: =Calc!$B$137*-1 -> 0 | M14: =Calc!$B$137*-1 -> 0 | N14: 0
A15: =Words!A107 -> Kone-,laite-, ja kalustokulut | B15: =Calc!$B$138*-1+'3. Invest'!F27*-1+'3. Invest'!F35*-1+'3. Invest'!F28 -> 0 | C15: =Calc!$B$138*-1 -> 0 | D15: =Calc!$B$138*-1 -> 0 | E15: =Calc!$B$138*-1 -> 0 | F15: =Calc!$B$138*-1 -> 0 | G15: =Calc!$B$138*-1 -> 0 | H15: =Calc!$B$138*-1 -> 0 | I15: =Calc!$B$138*-1 -> 0 | J15: =Calc!$B$138*-1 -> 0 | K15: =Calc!$B$138*-1 -> 0 | L15: =Calc!$B$138*-1 -> 0 | M15: =Calc!$B$138*-1 -> 0 | N15: 0
A16: =Words!A108 -> Kuljetus- ja huolintakulut | B16: =Calc!$B$139*-1 -> 0 | C16: =Calc!$B$139*-1 -> 0 | D16: =Calc!$B$139*-1 -> 0 | E16: =Calc!$B$139*-1 -> 0 | F16: =Calc!$B$139*-1 -> 0 | G16: =Calc!$B$139*-1 -> 0 | H16: =Calc!$B$139*-1 -> 0 | I16: =Calc!$B$139*-1 -> 0 | J16: =Calc!$B$139*-1 -> 0 | K16: =Calc!$B$139*-1 -> 0 | L16: =Calc!$B$139*-1 -> 0 | M16: =Calc!$B$139*-1 -> 0 | N16: 0
A17: =Words!A109 -> Ajoneuvokulut | B17: =Calc!$B$140*-1 -> 0 | C17: =Calc!$B$140*-1 -> 0 | D17: =Calc!$B$140*-1 -> 0 | E17: =Calc!$B$140*-1 -> 0 | F17: =Calc!$B$140*-1 -> 0 | G17: =Calc!$B$140*-1 -> 0 | H17: =Calc!$B$140*-1 -> 0 | I17: =Calc!$B$140*-1 -> 0 | J17: =Calc!$B$140*-1 -> 0 | K17: =Calc!$B$140*-1 -> 0 | L17: =Calc!$B$140*-1 -> 0 | M17: =Calc!$B$140*-1 -> 0 | N17: 0
A18: =Words!A110 -> Matkakulut | B18: =Calc!$B$141*-1 -> 0 | C18: =Calc!$B$141*-1 -> 0 | D18: =Calc!$B$141*-1 -> 0 | E18: =Calc!$B$141*-1 -> 0 | F18: =Calc!$B$141*-1 -> 0 | G18: =Calc!$B$141*-1 -> 0 | H18: =Calc!$B$141*-1 -> 0 | I18: =Calc!$B$141*-1 -> 0 | J18: =Calc!$B$141*-1 -> 0 | K18: =Calc!$B$141*-1 -> 0 | L18: =Calc!$B$141*-1 -> 0 | M18: =Calc!$B$141*-1 -> 0 | N18: 0
A19: =Words!A111 -> Myynti ja markkinointikulut | B19: =Calc!$B$142*-1+'3. Invest'!F61*-1 -> 0 | C19: =Calc!$B$142*-1 -> 0 | D19: =Calc!$B$142*-1 -> 0 | E19: =Calc!$B$142*-1 -> 0 | F19: =Calc!$B$142*-1 -> 0 | G19: =Calc!$B$142*-1 -> 0 | H19: =Calc!$B$142*-1 -> 0 | I19: =Calc!$B$142*-1 -> 0 | J19: =Calc!$B$142*-1 -> 0 | K19: =Calc!$B$142*-1 -> 0 | L19: =Calc!$B$142*-1 -> 0 | M19: =Calc!$B$142*-1 -> 0 | N19: 0
A20: =Words!A112 -> Edustuskulut | B20: =Calc!$B$143*-1 -> 0 | C20: =Calc!$B$143*-1 -> 0 | D20: =Calc!$B$143*-1 -> 0 | E20: =Calc!$B$143*-1 -> 0 | F20: =Calc!$B$143*-1 -> 0 | G20: =Calc!$B$143*-1 -> 0 | H20: =Calc!$B$143*-1 -> 0 | I20: =Calc!$B$143*-1 -> 0 | J20: =Calc!$B$143*-1 -> 0 | K20: =Calc!$B$143*-1 -> 0 | L20: =Calc!$B$143*-1 -> 0 | M20: =Calc!$B$143*-1 -> 0 | N20: 0
A21: =Words!A113 -> Tutkimus- ja kehittämiskulut | B21: =Calc!$B$144*-1 -> 0 | C21: =Calc!$B$144*-1 -> 0 | D21: =Calc!$B$144*-1 -> 0 | E21: =Calc!$B$144*-1 -> 0 | F21: =Calc!$B$144*-1 -> 0 | G21: =Calc!$B$144*-1 -> 0 | H21: =Calc!$B$144*-1 -> 0 | I21: =Calc!$B$144*-1 -> 0 | J21: =Calc!$B$144*-1 -> 0 | K21: =Calc!$B$144*-1 -> 0 | L21: =Calc!$B$144*-1 -> 0 | M21: =Calc!$B$144*-1 -> 0 | N21: 0
A22: =Words!A114 -> Asiantuntijakulut | B22: =Calc!$B$145*-1 -> 0 | C22: =Calc!$B$145*-1 -> 0 | D22: =Calc!$B$145*-1 -> 0 | E22: =Calc!$B$145*-1 -> 0 | F22: =Calc!$B$145*-1 -> 0 | G22: =Calc!$B$145*-1 -> 0 | H22: =Calc!$B$145*-1 -> 0 | I22: =Calc!$B$145*-1 -> 0 | J22: =Calc!$B$145*-1 -> 0 | K22: =Calc!$B$145*-1 -> 0 | L22: =Calc!$B$145*-1 -> 0 | M22: =Calc!$B$145*-1 -> 0 | N22: 0
A23: =Words!A115 -> Vakuutukset | B23: =Calc!$B$146*-1 -> 0 | C23: =Calc!$B$146*-1 -> 0 | D23: =Calc!$B$146*-1 -> 0 | E23: =Calc!$B$146*-1 -> 0 | F23: =Calc!$B$146*-1 -> 0 | G23: =Calc!$B$146*-1 -> 0 | H23: =Calc!$B$146*-1 -> 0 | I23: =Calc!$B$146*-1 -> 0 | J23: =Calc!$B$146*-1 -> 0 | K23: =Calc!$B$146*-1 -> 0 | L23: =Calc!$B$146*-1 -> 0 | M23: =Calc!$B$146*-1 -> 0 | N23: 0
A24: =Words!A116 -> Hallintokulut | B24: =Calc!$B$147*-1 -> 0 | C24: =Calc!$B$147*-1 -> 0 | D24: =Calc!$B$147*-1 -> 0 | E24: =Calc!$B$147*-1 -> 0 | F24: =Calc!$B$147*-1 -> 0 | G24: =Calc!$B$147*-1 -> 0 | H24: =Calc!$B$147*-1 -> 0 | I24: =Calc!$B$147*-1 -> 0 | J24: =Calc!$B$147*-1 -> 0 | K24: =Calc!$B$147*-1 -> 0 | L24: =Calc!$B$147*-1 -> 0 | M24: =Calc!$B$147*-1 -> 0 | N24: 0
A25: =Words!A117 -> Muut liiketoiminnan kulut | B25: =Calc!$B$148*-1+'3. Invest'!F16*-1+'3. Invest'!F41*-1+'3. Invest'!F65*-1 -> 0 | C25: =Calc!$B$148*-1 -> 0 | D25: =Calc!$B$148*-1 -> 0 | E25: =Calc!$B$148*-1 -> 0 | F25: =Calc!$B$148*-1 -> 0 | G25: =Calc!$B$148*-1 -> 0 | H25: =Calc!$B$148*-1 -> 0 | I25: =Calc!$B$148*-1 -> 0 | J25: =Calc!$B$148*-1 -> 0 | K25: =Calc!$B$148*-1 -> 0 | L25: =Calc!$B$148*-1 -> 0 | M25: =Calc!$B$148*-1 -> 0 | N25: 0
A26: =Words!A99 -> Lainojen korot | B26: =Calc!$B$131*-1 -> 0 | C26: =Calc!$B$131*-1 -> 0 | D26: =Calc!$B$131*-1 -> 0 | E26: =Calc!$B$131*-1 -> 0 | F26: =Calc!$B$131*-1 -> 0 | G26: =Calc!$B$131*-1 -> 0 | H26: =Calc!$B$131*-1 -> 0 | I26: =Calc!$B$131*-1 -> 0 | J26: =Calc!$B$131*-1 -> 0 | K26: =Calc!$B$131*-1 -> 0 | L26: =Calc!$B$131*-1 -> 0 | M26: =Calc!$B$131*-1 -> 0 | N26: 0
A27: =Words!A460 -> Alv ostoista | B27: =Calc!$J$144/12*-1 -> 0 | C27: =Calc!$J$144/12*-1 -> 0 | D27: =Calc!$J$144/12*-1 -> 0 | E27: =Calc!$J$144/12*-1 -> 0 | F27: =Calc!$J$144/12*-1 -> 0 | G27: =Calc!$J$144/12*-1 -> 0 | H27: =Calc!$J$144/12*-1 -> 0 | I27: =Calc!$J$144/12*-1 -> 0 | J27: =Calc!$J$144/12*-1 -> 0 | K27: =Calc!$J$144/12*-1 -> 0 | L27: =Calc!$J$144/12*-1 -> 0 | M27: =Calc!$J$144/12*-1 -> 0 | N27: 0
A28: =Words!A732 -> Maksettava alv | B28: =B8+B27 -> 0 | C28: 0 | D28: 0 | E28: 0 | F28: 0 | G28: 0 | H28: 0 | I28: 0 | J28: 0 | K28: 0 | L28: 0 | M28: 0 | N28: 0
A29: =Words!A324 -> Poistot | B29: =Calc!$B$124*-1 -> 0 | C29: =Calc!$B$124*-1 -> 0 | D29: =Calc!$B$124*-1 -> 0 | E29: =Calc!$B$124*-1 -> 0 | F29: =Calc!$B$124*-1 -> 0 | G29: =Calc!$B$124*-1 -> 0 | H29: =Calc!$B$124*-1 -> 0 | I29: =Calc!$B$124*-1 -> 0 | J29: =Calc!$B$124*-1 -> 0 | K29: =Calc!$B$124*-1 -> 0 | L29: =Calc!$B$124*-1 -> 0 | M29: =Calc!$B$124*-1 -> 0 | N29: 0
A30: =Words!A734 -> Tulos | B30: =B7+B9+(IF('1. Project'!$B$17=Words!$A$13,Calc!$K$24*-1,0))+SUM(B11:B26)+B29 -> 0 | C30: =C7+C9+(IF('1. Project'!$B$17=Words!$A$13,Calc!$K$24*-1,0))+SUM(C11:C26)+C29 -> 0 | D30: =D7+D9+(IF('1. Project'!$B$17=Words!$A$13,Calc!$K$24*-1,0))+SUM(D11:D26)+D29 -> 0 | E30: =E7+E9+(IF('1. Project'!$B$17=Words!$A$13,Calc!$K$24*-1,0))+SUM(E11:E26)+E29 -> 0 | F30: =F7+F9+(IF('1. Project'!$B$17=Words!$A$13,Calc!$K$24*-1,0))+SUM(F11:F26)+F29 -> 0 | G30: =G7+G9+(IF('1. Project'!$B$17=Words!$A$13,Calc!$K$24*-1,0))+SUM(G11:G26)+G29 -> 0 | H30: =H7+H9+(IF('1. Project'!$B$17=Words!$A$13,Calc!$K$24*-1,0))+SUM(H11:H26)+H29 -> 0 | I30: =I7+I9+(IF('1. Project'!$B$17=Words!$A$13,Calc!$K$24*-1,0))+SUM(I11:I26)+I29 -> 0 | J30: =J7+J9+(IF('1. Project'!$B$17=Words!$A$13,Calc!$K$24*-1,0))+SUM(J11:J26)+J29 -> 0 | K30: =K7+K9+(IF('1. Project'!$B$17=Words!$A$13,Calc!$K$24*-1,0))+SUM(K11:K26)+K29 -> 0 | L30: =L7+L9+(IF('1. Project'!$B$17=Words!$A$13,Calc!$K$24*-1,0))+SUM(L11:L26)+L29 -> 0 | M30: =M7+M9+(IF('1. Project'!$B$17=Words!$A$13,Calc!$K$24*-1,0))+SUM(M11:M26)+M29 -> 0 | N30: 0
A31: =Words!A735 -> Oy:n tuloveron ennakkomaksu | B31: =IF('1. Project'!$B$17=Words!$A$13,(IF($N$30>0,($N$30/12*0.2),0)),0) -> 0 | C31: =IF('1. Project'!$B$17=Words!$A$13,(IF($N$30>0,($N$30/12*0.2),0)),0) -> 0 | D31: =IF('1. Project'!$B$17=Words!$A$13,(IF($N$30>0,($N$30/12*0.2),0)),0) -> 0 | E31: =IF('1. Project'!$B$17=Words!$A$13,(IF($N$30>0,($N$30/12*0.2),0)),0) -> 0 | F31: =IF('1. Project'!$B$17=Words!$A$13,(IF($N$30>0,($N$30/12*0.2),0)),0) -> 0 | G31: =IF('1. Project'!$B$17=Words!$A$13,(IF($N$30>0,($N$30/12*0.2),0)),0) -> 0 | H31: =IF('1. Project'!$B$17=Words!$A$13,(IF($N$30>0,($N$30/12*0.2),0)),0) -> 0 | I31: =IF('1. Project'!$B$17=Words!$A$13,(IF($N$30>0,($N$30/12*0.2),0)),0) -> 0 | J31: =IF('1. Project'!$B$17=Words!$A$13,(IF($N$30>0,($N$30/12*0.2),0)),0) -> 0 | K31: =IF('1. Project'!$B$17=Words!$A$13,(IF($N$30>0,($N$30/12*0.2),0)),0) -> 0 | L31: =IF('1. Project'!$B$17=Words!$A$13,(IF($N$30>0,($N$30/12*0.2),0)),0) -> 0 | M31: =IF('1. Project'!$B$17=Words!$A$13,(IF($N$30>0,($N$30/12*0.2),0)),0) -> 0 | N31: 0
A32: =Words!A737 -> Voitto | B32: =SUM(B30:B31) -> 0 | C32: 0 | D32: 0 | E32: 0 | F32: 0 | G32: 0 | H32: 0 | I32: 0 | J32: 0 | K32: 0 | L32: 0 | M32: 0 | N32: 0
A33: =Words!A736 -> Alkuinvestoinnit | B33: =Calc!$B$380*-1 -> 0 | N33: 0
A34: =Words!A738 -> Muu rahoitus | B34: ='6. Balance Sheet'!$H$13 -> 0 | N34: 0
A35: =Words!A739 -> Laina | B35: ='6. Balance Sheet'!$H$7 -> 0 | N35: 0
A36: =Words!A740 -> Lainan lyhennys | B36: =Calc!$B$123*-1 -> 0 | C36: =Calc!$B$123*-1 -> 0 | D36: =Calc!$B$123*-1 -> 0 | E36: =Calc!$B$123*-1 -> 0 | F36: =Calc!$B$123*-1 -> 0 | G36: =Calc!$B$123*-1 -> 0 | H36: =Calc!$B$123*-1 -> 0 | I36: =Calc!$B$123*-1 -> 0 | J36: =Calc!$B$123*-1 -> 0 | K36: =Calc!$B$123*-1 -> 0 | L36: =Calc!$B$123*-1 -> 0 | M36: =Calc!$B$123*-1 -> 0 | N36: 0
N37: 0
A38: =Words!A750 -> MAKSUVALMIUS / KK | B38: =SUM(B32:B37) -> 0 | C38: =SUM(C32:C37)+B38 -> 0 | D38: 0 | E38: 0 | F38: 0 | G38: 0 | H38: 0 | I38: 0 | J38: 0 | K38: 0 | L38: 0 | M38: 0 | N38: =M38 -> 0
A39: =Words!A741 -> *20 % TULOKSESTA jaettuna per kk (12)
A40: =Words!A753 -> * Jos yhtiömuotona on osakeyhtiö

Sheet Setup (hidden)
A4: =Words!A40 -> Prh-maksu
A5: =Words!A10 -> Yksityinen elinkeinonharjoittaja | B5: 70 | C5: €
A6: =Words!A11 -> Avoin yhtiö | B6: 280 | C6: €
A7: =Words!A12 -> Kommandiittiyhtiö | B7: 280 | C7: €
A8: =Words!A13 -> Osakeyhtiö | B8: 280 | C8: €
A9: =Words!A14 -> Osuuskunta | B9: 370 | C9: €
A11: Yhteisöverokanta | B11: 0.2
A13: =Words!A16 -> alv | B13: 0.24
B14: =ROUND(0.14,3) -> 0.14
B15: 0.1
B16: 0
A18: =Words!A648 -> YEL | B18: 0.241
A20: =Words!A646&" ->" -> Pudotusvalikot -> | B20: =Words!A647 -> Kasvu % | C20: =Words!A649 -> KPO-var. | D20: =Words!B650 -> KPO-kor. | E20: =Words!A651 -> Tilikausi
B21: 0 | C21: 1 | D21: -3 | E21: 18
B22: 0.03 | C22: 2 | D22: -2 | E22: 12
B23: 0.05 | C23: 3 | D23: -1 | E23: 6
B24: 0.1 | C24: 4 | D24: 0 | E24: 7
B25: 0.2 | C25: 5 | D25: 1 | E25: 8
B26: 0.3 | C26: 6 | D26: 2 | E26: 9
B27: 0.5 | D27: 3 | E27: 10
B28: 0.75 | E28: 11
B29: 1 | E29: 13
B30: 1.5 | E30: 14
B31: 2 | E31: 15
B32: 3 | E32: 16
B33: 5 | E33: 17
A36: Km-korvaus | B36: 0.53 | C36: €

Sheet POIS Kansi (hidden)
K5: Käytössä olevat muuttujat:
K6: as.nimi
K7: as.osoite
K8: as.puhelin
K9: as.sähköposti
K11: konsultti
K12: nimi
K13: puhelin
K14: sähköposti
K15: päivämäärä
A21: =Words!A48 -> Liiketoimintasuunnitelmaan
A23: =Words!A49 -> Liittyvät laskelmat
E26: =as.nimi -> 
E27: =as.osoite -> 
E28: =as.puhelin -> 
E29: =as.sähköposti -> 
B50: =Nimi -> 
B52: =sähköposti -> 

Sheet POISTulosvrt (hidden)
A1: =Words!$A$660 -> Tulosvertailu ja kriittinen piste
A3: =Words!$A$462 -> Herkkyysanalyysi | J3: =Words!$A$470 -> Kriittinen piste
E4: 1 | F4: 0.95 | G4: 0.9 | H4: 0.8 | I4: 0.7
A5: =Words!$A$464 -> Myyntitarve(alv 0%) | E5: =Calc!$B$101 -> 0 | F5: =Calc!$B$101 -> 0 | G5: =Calc!$B$101 -> 0 | H5: =Calc!$B$101 -> 0 | I5: =Calc!$B$101 -> 0 | J5: =IF(E6=0,0,E5/E6) -> 0
A6: =Words!$A$463 -> Liikevaihto (alv 0%) | E6: =Calc!$B$91 -> 0 | F6: =E6*F4 -> 0 | G6: =E6*G4 -> 0 | H6: =E6*H4 -> 0 | I6: =E6*I4 -> 0
A7: =Words!$A$466 -> Erotus | E7: =E6-E5 -> 0 | F7: 0 | G7: 0 | H7: 0 | I7: 0
E9: Siirretään TaseTulos-sivulle'

Sheet POIS Print (hidden)
B6: Tulostusjärjestys | C6: Kansi ensin
B8: Tulostettava taulu | C8: Valinta:
B9: Kansi | C9: on
B10: TaseTulos | C10: on
B11: Tase | C11: off
B12: Invest 1/2 | C12: on
B13: Invest 2/2 | C13: auto
B14: Kiinteät | C14: on
B15: Palkat | C15: on
B16: Myynti 1/2 | C16: on
B17: Myynti 2/2 | C17: off
B18: Tulosvrt | C18: on
B19: 3vTulos | C19: on
B20: StarttiR | C20: on
B21: Fvera | C21: off
C29: "on" = sivu tulostetaan
C30: "off" = sivua ei tulosteta
C31: "auto" = sivu tulostetaan, jos se käytössä

Sheet Start Up Financing
A1: =Words!A543 -> LIITE LOMAKKEESEEN TM 3.25 (starttiraha)
A2: Suunniteltu | B2: =Words!A547 -> Pääoman | C2: =Words!A548 -> tarve
A3: rahoitus | B3: =Words!A554 -> Investoinnit (rakennukset, koneet, kalusteet) | I3: =Calc!B166 -> 280
B4: =Words!A555 -> Käyttöpääoma (1-2 kk:n kulut + käteisvarat) | I4: =Calc!B167 -> 0
B5: =Words!A556 -> Kustannusylitysvaraus (sisältyy käteisvaroihin) | I5: =Calc!B168 -> 
G6: =Words!A557 -> Yhteensä | I6: =SUM(I3:I5) -> 280
B7: =Words!A550 -> Rahoitus
B8: =Words!A560 -> Oma rahoitus | I8: =Calc!B170 -> 0
B9: =Words!A561 -> Muiden sijoitukset yritykseen
B10: =Words!A562 -> Lainat | I10: =Calc!B172 -> 0
B11: =Words!A563 -> Avustukset ja tuet | I11: =Calc!B173 -> 
G13: =Words!A557 -> Yhteensä | I13: =SUM(I8:I12) -> 0
A15: U
A16: =Words!A552 -> Kannattavuus | B16: =Words!A568 -> Tavoitetulos (Yrittäjän oma nettopalkka 1. Vuonna) | I16: =Calc!B176 -> 0
B17: =Words!A569 -> Verot + lainojen lyhennys | I17: =Calc!B177 -> 0
B18: =Words!A570 -> Rahoitustarve | I18: =Calc!B178 -> 0
B19: =Words!A571 -> Korot, muut rahoituskulut | I19: =Calc!B179 -> 0
B20: =Words!A572 -> Käyttökatetarve | I20: =Calc!B180 -> 0
B22: ="+"&Words!A574 -> + kiinteät kulut
C23: ="+"&Words!A579 -> +Palkat ja palkkiot | H23: =Calc!B182 -> 0
C24: ="+"&Words!A580 -> +Henkilösivukulut | H24: =Calc!B183 -> 0
C25: ="+"&Words!A581 -> +Muut henkilöstösivukulut | H25: =Calc!B184 -> 
C26: ="+"&Words!A582 -> +Kiinteistökulut | H26: =Calc!B185 -> 0
C27: ="+"&Words!A583 -> +Kone-,laite-, ja kalustokulut | H27: =Calc!B186 -> 0
C28: ="+"&Words!A584 -> +Kuljetus- ja huolintakulut | H28: =Calc!B187 -> 0
C29: ="+"&Words!A585 -> +Ajoneuvokulut | H29: =Calc!B188 -> 0
C30: ="+"&Words!A586 -> +Matkakulut | H30: =Calc!B189 -> 0
C31: ="+"&Words!A587 -> +Myynti ja markkinointikulut | H31: =Calc!B190 -> 0
C32: ="+"&Words!A588 -> +Edustuskulut | H32: =Calc!B191 -> 0
C33: ="+"&Words!A589 -> +Tutkimus- ja kehittämiskulut | H33: =Calc!B192 -> 0
C34: ="+"&Words!A590 -> +Asiantuntijakulut | H34: =Calc!B193 -> 0
C35: ="+"&Words!A591 -> +Vakuutukset | H35: =Calc!B194 -> 0
C36: ="+"&Words!A592 -> +Hallintokulut | H36: =Calc!B195 -> 0
C37: ="+"&Words!A593 -> +Muut liiketoiminnan kulut | H37: =Calc!B196 -> 0
H38: =Calc!B197 -> 0
B39: ="= "&Words!A595 -> = Myyntikatetarve | I39: =Calc!B197+Calc!B180 -> 0
C40: ="+"&Words!A597 -> +aineet ja tarvikkeet | I40: =Calc!B199 -> 0
C41: ="+"&Words!A598 -> +työntekijöiden muuttuvat palkat sivukuluineen
C42: ="+"&Words!A599 -> +muut muuttuvat
A43: V
A44: =Words!A601 -> Liikevaihto | B44: ="="&Words!A603 -> =Liikevaihto (tarve) | I44: =Calc!B202 -> 0

Sheet Words
E1: 1 | J1: Taulukot: | K1: ='1. Project'!B3 -> Suomi
E2: 2
B3: Suomi | C3: English | D3: Svenska | E3: 3
E4: 4
E5: 5
E6: 6
E7: 7
E8: 8
E9: 9
A10: =IF($K$1="suomi",B10,IF($K$1="english",C10,IF($K$1="svenska",D10, ))) -> Yksityinen elinkeinonharjoittaja | B10: Yksityinen elinkeinonharjoittaja | C10: Private Entrepreneur | D10: Privat näringsidkare | E10: 10
A11: Avoin yhtiö | B11: Avoin yhtiö | C11: General partnership | D11: Öppet bolag | E11: 11
A12: Kommandiittiyhtiö | B12: Kommandiittiyhtiö | C12: Limited partnership | D12: Kommanditbolag | E12: 12
A13: Osakeyhtiö | B13: Osakeyhtiö | C13: Limited company/Corporation (US) | D13: Aktiebolag | E13: 13
A14: Osuuskunta | B14: Osuuskunta | C14: Co-operative | D14: Andelslag | E14: 14
A15: Valitse yhtiömuoto | B15: Valitse yhtiömuoto | C15: Choose | D15: Välja | E15: 15
A16: alv | B16: alv | C16: vat | D16: moms | E16: 16
E17: 17
A18: Täytä tämän värisiä soluja | B18: Täytä tämän värisiä soluja | C18: Fill cells of this colour | D18: fyll celler med denna färg | E18: 18
A19: Sivut 1-6 sisältävät täytettäviä tietoja | B19: Sivut 1-6 sisältävät täytettäviä tietoja | C19: Pages 1-6 contain information to be filled in | D19: Sidorna 1-6 innehåller information som ska fyllas i | E19: 19
A20: Projektin tiedot | B20: Projektin tiedot | C20: Project | D20: Projekt | E20: 20
A21: Käyttöohje | B21: Käyttöohje | C21: Instruction manual | D21: Instruktioner för användning | E21: 21
A22: kieli: | B22: kieli: | C22: language: | D22: språk | E22: 22
A23: Tulostus- | B23: Tulostus- | C23: Printing | D23: Utskrifts- | E23: 23
A24: kieli: | B24: kieli: | C24: language: | D24: språk | E24: 24
A25: Asiakaskortti | B25: Asiakaskortti | C25: Client card | D25: Kundkort | E25: 25
A26: Asiakas | B26: Asiakas | C26: Client | D26: Kund | E26: 26 | F26: As.Kortti
A27: Yrityksen nimi | B27: Yrityksen nimi | C27: Company name | D27: Namn av bolaget | E27: 27 | F27: As.Kortti
A28: Osoite | B28: Osoite | C28: Address | D28: Adress | E28: 28 | F28: As.Kortti
A29: Puhelin | B29: Puhelin | C29: Phone | D29: Telefon | E29: 29 | F29: As.Kortti
A30: Sähköposti | B30: Sähköposti | C30: Mail | D30: E-post | E30: 30 | F30: As.Kortti
E31: 31 | F31: As.Kortti
A32: Konsultti | B32: Konsultti | C32: Adviser | D32: Konsult | E32: 32 | F32: As.Kortti
A33: Opiskelijan nimi | B33: Opiskelijan nimi | C33: Student's name | D33: Namn av student | E33: 33 | F33: As.Kortti
A34: Puhelin | B34: Puhelin | C34: Phone | D34: Telefon | E34: 34 | F34: As.Kortti
A35: Sähköposti | B35: Sähköposti | C35: e-Mail | D35: E-post | E35: 35 | F35: As.Kortti
E36: 36 | F36: As.Kortti
A37: Päivämäärä | B37: Päivämäärä | C37: Date | D37: Datum | E37: 37 | F37: As.Kortti
A38: Yritystoiminnan aloituspvm | B38: Yritystoiminnan aloituspvm | C38: Date when starting the business | D38: Datum då verksamheten inleds | E38: 38 | F38: As.Kortti
A39: Yhtiömuoto | B39: Yhtiömuoto | C39: Company form | D39: Bolagsform | E39: 39 | F39: As.Kortti
A40: Prh-maksu | B40: Prh-maksu | C40: Prh-costs | D40: Prs-avgifter | E40: 40 | F40: As.Kortti
A41: Päätoimiala | B41: Päätoimiala | C41: Sector | D41: Huvudbransch | E41: 41 | F41: As.Kortti
A42: Nimike | B42: Nimike | C42: Title | D42: Titel | E42: 42 | F42: As.Kortti
A43: Lista toimialoista | B43: Lista toimialoista | C43: Industrial Classification | D43: Näringsgrensindelningen | E43: 43 | F43: As.Kortti
A44: Käynnit | B44: Käynnit | C44: Visits | D44: Besök | E44: 44 | F44: As.Kortti
E45: 45 | F45: As.Kortti
E46: 46 | F46: As.Kortti
E47: 47 | F47: Kansi
A48: Liiketoimintasuunnitelmaan | B48: Liiketoimintasuunnitelmaan | C48: Business plan-related | D48: Kalkyler i samband | E48: 48 | F48: Kansi
A49: Liittyvät laskelmat | B49: Liittyvät laskelmat | C49: Key figures | D49: Med affärsplanen | E49: 49 | F49: Kansi
E50: 50 | F50: Kansi
A51: Aloittava tase | B51: =LEFT(B52,1)&lower(RIGHT(B52,LEN(B52)-1)) -> Aloittava tase | C51: Initial balance sheet | D51: Ingående balans | E51: 51 | F51: Kansi
A52: Aloittava tase | B52: Aloittava tase | C52: Initial balance sheet | D52: Ingående balans | E52: 52 | F52: TaseTulos
E53: 53 | F53: TaseTulos
A54: Rahan tarve (investoinnit) | B54: Rahan tarve (investoinnit) | C54: Capital requirements (investments) | D54: Penningbehov (investeringar) | E54: 54 | F54: TaseTulos
A55: Kiinteistöt ja maa-alueet | B55: Kiinteistöt ja maa-alueet | C55: Property and land | D55: Fastigheter och mark | E55: 55 | F55: TaseTulos
A56: Vuokratakuu | B56: Vuokratakuu | C56: Rental security deposit | D56: Hyresgaranti | E56: 56 | F56: TaseTulos
A57: Remontti | B57: Remontti | C57: Renovation | D57: Renovering | E57: 57 | F57: TaseTulos
A58: Liiketoiminnan kauppahinta | B58: Liiketoiminnan kauppahinta | C58: Purchase price of an asset deal | D58: Förvärvspris om verksamhetsförvärv | E58: 58 | F58: TaseTulos
A59: Koneet ja kalusteet | B59: Koneet ja kalusteet | C59: machinery and furniture | D59: Maskiner och möbler | E59: 59 | F59: TaseTulos
A60: Tuotantokoneet ja -laitteet | B60: Tuotantokoneet ja -laitteet | C60: Machinery & equipment | D60: Maskiner, anläggningar | E60: 60 | F60: TaseTulos
A61: Kalusteet | B61: Kalusteet | C61: Furnishings & fixtures | D61: Möbler | E61: 61 | F61: TaseTulos
A62: Tarvikkeet | B62: Tarvikkeet | C62: Supplies | D62: Förnödenheter | E62: 62 | F62: TaseTulos
A63: Auto | B63: Auto | C63: Vehicles | D63: Bil | E63: 63 | F63: TaseTulos
A64: Mallit, protot ym. | B64: Mallit, protot ym. | C64: Models, prototypes | D64: Modeller, prototyper | E64: 64 | F64: TaseTulos
A65: Markkin. invest. | B65: Markkin. invest. | C65: Marketing Invests. | D65: Marknadsföring | E65: 65 | F65: TaseTulos
A66: Kaupparekisterimaksu | B66: Kaupparekisterimaksu | C66: Registration fee | D66: Registreringsavgift | E66: 66 | F66: TaseTulos
A67: Muut yhteensä | B67: Muut yhteensä | C67: Other costs total | D67: Övrigt totalt | E67: 67 | F67: TaseTulos
A68: Alkuvarasto | B68: Alkuvarasto | C68: Initial inventory | D68: Ingående lager | E68: 68 | F68: TaseTulos
A69: Kassareservi | B69: Kassareservi | C69: Cash reserve | D69: Kassareserv | E69: 69 | F69: TaseTulos
A70: Käyt.pääoma yht. | B70: Käyt.pääoma yht. | C70: Working capital total | D70: Driftskapital tot. | E70: 70 | F70: TaseTulos
A71: Yhteensä | B71: Yhteensä | C71: Total | D71: Totalt | E71: 71 | F71: TaseTulos
E72: 72 | F72: TaseTulos
A73: Rahan lähteet | B73: Rahan lähteet | C73: Capital sources | D73: Finansieringskälla | E73: 73 | F73: TaseTulos
E74: 74 | F74: TaseTulos
A75: Pankkilaina | B75: Pankkilaina | C75: Bank loan | D75: Banklån | E75: 75 | F75: TaseTulos
A76: Finnvera | B76: Finnvera | C76: Finnvera loan | D76: Lån från Finnvera | E76: 76 | F76: TaseTulos
A77: Muu laina | B77: Muu laina | C77: Other loans | D77: Annat lån | E77: 77 | F77: TaseTulos | G77: =LEFT(B77,1)&LOWER(RIGHT(B77,LEN(B77)-1)) -> Muu laina | H77: Other loans | I77: Annat lån
A78: Vieras pääoma yht. | B78: Vieras pääoma yht. | C78: Liabilities total | D78: Främmande kap. tot | E78: 78 | F78: TaseTulos | G78: =LEFT(B78,1)&LOWER(RIGHT(B78,LEN(B78)-1)) -> Vieras pääoma yht. | H78: Liabilities total | I78: Främmande kap. tot
A79: Osakepääoma rahana | B79: Osakepääoma rahana | C79: Share capital in cash | D79: Aktiekapital i pengar | E79: 79 | F79: TaseTulos | G79: =LEFT(B79,1)&LOWER(RIGHT(B79,LEN(B79)-1)) -> Osakepääoma rahana | H79: Share capital in cash | I79: Aktiekapital i pengar
A80: Osakepääoma apporttina | B80: Osakepääoma apporttina | C80: Share capital in kind | D80: Aktiekapital som apport | E80: 80 | F80: TaseTulos
A81: Muu oma pääoma rahana | B81: Muu oma pääoma rahana | C81: Other equity in cash | D81: Annat eget kapital i pengar | E81: 81 | F81: TaseTulos
A82: Muu oma pääoma apporttina | B82: Muu oma pääoma apporttina | C82: Other equity in kind | D82: Annat eget kapital som apport | E82: 82 | F82: TaseTulos
A83: Yritystuet | B83: Yritystuet | C83: Enterprise subsidies | D83: Företagsstöd | E83: 83 | F83: TaseTulos
A84: Oma pääoma yht. | B84: Oma pääoma yht. | C84: Equity total | D84: Eget kapital tot. | E84: 84 | F84: TaseTulos | G84: =LEFT(B84,1)&LOWER(RIGHT(B84,LEN(B84)-1)) -> Oma pääoma yht. | H84: Equity total | I84: Eget kapital tot.
A85: Yhteensä | B85: Yhteensä | C85: Total | D85: Totalt | E85: 85 | F85: TaseTulos | G85: =LEFT(B85,1)&LOWER(RIGHT(B85,LEN(B85)-1)) -> Yhteensä | H85: Total | I85: Totalt
A86: Korko | B86: Korko | C86: Interest rate | D86: Ränta | E86: 86 | F86: TaseTulos
A87: Laina-aika (v) | B87: Laina-aika (v) | C87: loan maturity (y) | D87: Lånetid (år) | E87: 87 | F87: TaseTulos
A88: Kustannusrakenne / myyntitarve ("tuloslaskelma") | B88: Kustannusrakenne / myyntitarve ("tuloslaskelma") | C88: Cost structure / sales need (income statement) | D88: Kostnadsstruktur/säljbehov ("resultaträkning") | E88: 88 | F88: TaseTulos | G88: =LEFT(B88,1)&LOWER(RIGHT(B88,LEN(B88)-1)) -> Kustannusrakenne / myyntitarve ("tuloslaskelma") | H88: Cost structure / sales need (income statement) | I88: Kostnadsstruktur/säljbehov ("resultaträkning")
E89: 89 | F89: TaseTulos
A90: Kuukausi | B90: Kuukausi | C90: Month | D90: Månad | E90: 90 | F90: TaseTulos | G90: =LEFT(B90,1)&LOWER(RIGHT(B90,LEN(B90)-1)) -> Kuukausi | H90: Month | I90: Månad
A91: Tilikausi | B91: Tilikausi | C91: Fiscal period | D91: Räkenskapsperiod | E91: 91 | F91: TaseTulos | G91: =LEFT(B91,1)&LOWER(RIGHT(B91,LEN(B91)-1)) -> Tilikausi | H91: Fiscal period | I91: Räkenskapsperiod
E92: 92 | F92: TaseTulos | G92: =LEFT(B92,1)&LOWER(RIGHT(B92,LEN(B92)-1)) -> #VALUE! | H92: #VALUE! | I92: #VALUE!
A93: Oma nettopalkka(tarve) | B93: Oma nettopalkka(tarve) | C93: Own net salary target | D93: Egen nettolön (behov) | E93: 93 | F93: TaseTulos | G93: =LEFT(B93,1)&LOWER(RIGHT(B93,LEN(B93)-1)) -> Oma nettopalkka(tarve) | H93: Own net salary target | I93: Egen nettolön (behov)
A94: + Lainojen lyhennys | B94: + Lainojen lyhennys | C94: Loan repayment | D94: Amortering | E94: 94 | F94: TaseTulos | G94: =LEFT(B94,1)&LOWER(RIGHT(B94,LEN(B94)-1)) -> + lainojen lyhennys | H94: Loan repayment | I94: Amortering
A95: - Poistot | B95: - Poistot | C95: Depreciation | D95: Avskrivningar | E95: 95 | F95: TaseTulos | G95: =LEFT(B95,1)&LOWER(RIGHT(B95,LEN(B95)-1)) -> - poistot | H95: Depreciation | I95: Avskrivningar
A96: = Tulot verojen jälkeen | B96: = Tulot verojen jälkeen | C96: Income after taxes | D96: Inkomst efter skatt | E96: 96 | F96: TaseTulos | G96: =LEFT(B96,1)&LOWER(RIGHT(B96,LEN(B96)-1)) -> = tulot verojen jälkeen | H96: Income after taxes | I96: Inkomst efter skatt
A97: + Verot | B97: + Verot | C97: Taxex (tax %) | D97: Skatt | E97: 97 | F97: TaseTulos | G97: =LEFT(B97,1)&LOWER(RIGHT(B97,LEN(B97)-1)) -> + verot | H97: Taxex (tax %) | I97: Skatt
A98: = Bruttotulo(tarve) | B98: = Bruttotulo(tarve) | C98: Gross income | D98: Bruttoinkomst (behov) | E98: 98 | F98: TaseTulos | G98: =LEFT(B98,1)&LOWER(RIGHT(B98,LEN(B98)-1)) -> = bruttotulo(tarve) | H98: Gross income | I98: Bruttoinkomst (behov)
A99: Lainojen korot | B99: Lainojen korot | C99: Interest on loans | D99: Ränta på lån | E99: 99 | F99: TaseTulos | G99: =LEFT(B99,1)&LOWER(RIGHT(B99,LEN(B99)-1)) -> Lainojen korot | H99: Interest on loans | I99: Ränta på lån
A100: = Käyttökate(tarve) | B100: = Käyttökate(tarve) | C100: Gross margin (need) | D100: Driftsbidrag (behov) | E100: 100 | F100: TaseTulos
A101: Kiinteät kulut | B101: Kiinteät kulut | C101: Fixed costs | D101: Fasta kostnader | E101: 101 | F101: TaseTulos
E102: 102 | F102: TaseTulos
A103: Palkat ja palkkiot | B103: Palkat ja palkkiot | C103: Salaries and wages | D103: Löner och arvoden | E103: 103 | F103: TaseTulos
A104: Henkilösivukulut | B104: Henkilösivukulut | C104: Indirect employee costs | D104: Bikostnader för personalen | E104: 104 | F104: TaseTulos
A105: Muut henkilöstösivukulut (Yrittäjän YEL) | B105: Muut henkilöstösivukulut (Yrittäjän YEL) | C105: Other indirect employee costs | D105: Andra bikostnader för personalen | E105: 105 | F105: TaseTulos
A106: Kiinteistökulut | B106: Kiinteistökulut | C106: Property expenses | D106: Fastighetskostnader | E106: 106 | F106: TaseTulos
A107: Kone-,laite-, ja kalustokulut | B107: Kone-,laite-, ja kalustokulut | C107: Machinery & equipment costs | D107: Kostnader för maskiner, anläggningar och möbler | E107: 107 | F107: TaseTulos
A108: Kuljetus- ja huolintakulut | B108: Kuljetus- ja huolintakulut | C108: Transport and forwarding | D108: Transport- och speditionskostnader | E108: 108 | F108: TaseTulos
A109: Ajoneuvokulut | B109: Ajoneuvokulut | C109: Vehicle expenses | D109: Fordonskostnader | E109: 109 | F109: TaseTulos
A110: Matkakulut | B110: Matkakulut | C110: Travel expenses | D110: Resekostnader | E110: 110 | F110: TaseTulos
A111: Myynti ja markkinointikulut | B111: Myynti ja markkinointikulut | C111: Sales and marketing costs | D111: Sälj- och marknadsföringskostnader | E111: 111 | F111: TaseTulos
A112: Edustuskulut | B112: Edustuskulut | C112: Entertainment expenses | D112: Representationskostnader | E112: 112 | F112: TaseTulos
A113: Tutkimus- ja kehittämiskulut | B113: Tutkimus- ja kehittämiskulut | C113: R & D expenses | D113: FoU-kostnader | E113: 113 | F113: TaseTulos
A114: Asiantuntijakulut | B114: Asiantuntijakulut | C114: Consulting fees | D114: Expertkostnader | E114: 114 | F114: TaseTulos
A115: Vakuutukset | B115: Vakuutukset | C115: Insurances | D115: Försäkringar | E115: 115 | F115: TaseTulos
A116: Hallintokulut | B116: Hallintokulut | C116: Administrative expenses | D116: Administrativa kostnader | E116: 116 | F116: TaseTulos
A117: Muut liiketoiminnan kulut | B117: Muut liiketoiminnan kulut | C117: Other operating expenses | D117: Andra kostnader för affärsverksamheten | E117: 117 | F117: TaseTulos
E118: 118 | F118: TaseTulos
A119: Kiinteät yhteensä (alv 0%) | B119: Kiinteät yhteensä (alv 0%) | C119: Fixed costs total (vat 0%) | D119: Fasta kostnader tot. (moms 0 %) | E119: 119 | F119: TaseTulos
A120: =Myyntikate(tarve) | B120: =Myyntikate(tarve) | C120: Gross margin on sales (need) | D120: Försäljningsbidrag (behov) | E120: 120 | F120: TaseTulos
A121: +Aineet & tarvikkeet (-ALV) | B121: +Aineet & tarvikkeet (-ALV) | C121: Material, supplies (-vat) | D121: Material och förnödenheter (-moms) | E121: 121 | F121: TaseTulos
A122: =liikevaihto(tarve) | B122: =liikevaihto(tarve) | C122: Net sales(required) | D122: Omsättning (behov) | E122: 122 | F122: TaseTulos | G122: =LEFT(B122,1)&LOWER(RIGHT(B122,LEN(B122)-1)) -> =liikevaihto(tarve) | H122: Net sales(required) | I122: Omsättning (behov)
A123: +alv edelliseen | B123: +alv edelliseen | C123: +vat on previous | D123: +moms på föregående | E123: 123 | F123: TaseTulos | G123: =LEFT(B123,1)&LOWER(RIGHT(B123,LEN(B123)-1)) -> +alv edelliseen | H123: +vat on previous | I123: +moms på föregående
A124: Kokonaismyynti(tarve) | B124: Kokonaismyynti(tarve) | C124: Total sales (required) | D124: Total försäljnng (behov) | E124: 124 | F124: TaseTulos | G124: =LEFT(B124,1)&LOWER(RIGHT(B124,LEN(B124)-1)) -> Kokonaismyynti(tarve) | H124: Total sales (required) | I124: Total försäljnng (behov)
A125: Pitkävaikutteiset menot | B125: Pitkävaikutteiset menot | C125: Long-term expenditure | D125: Långfristiga utgifter | E125: 125 | F125: TaseTulos
E126: 126 | F126: TaseTulos
A127: Myyntitarve euroa per | B127: Myyntitarve euroa per | C127: Sales need euros per | D127: Säljbehov euro per | E127: 127 | F127: TaseTulos | G127: =LEFT(B127,1)&LOWER(RIGHT(B127,LEN(B127)-1)) -> Myyntitarve euroa per | H127: Sales need euros per | I127: Säljbehov euro per
A128: Aikamäärittelyt | B128: Aikamäärittelyt | C128: Period allocations | D128: Tidsdefinitioner | E128: 128 | F128: TaseTulos
A129: kk | B129: kk | C129: month | D129: månad | E129: 129 | F129: TaseTulos
A130: viikko | B130: viikko | C130: week | D130: vecka | E130: 130 | F130: TaseTulos
A131: päivä | B131: päivä | C131: day | D131: dag | E131: 131 | F131: TaseTulos
A132: tunti | B132: tunti | C132: hour | D132: timme | E132: 132 | F132: TaseTulos
E133: 133 | F133: TaseTulos
A134: 1v = | B134: 1v = | C134: 1year = | D134: 1 år = | E134: 134 | F134: TaseTulos
A135: 1kk = | B135: 1kk = | C135: 1month = | D135: 1 månad = | E135: 135 | F135: TaseTulos
A136: kk | B136: kk | C136: month | D136: månad | E136: 136 | F136: TaseTulos
A137: vko | B137: vko | C137: week | D137: vecka | E137: 137 | F137: TaseTulos
A138: 1vko = | B138: 1vko = | C138: 1week = | D138: 1 vecka = | E138: 138 | F138: TaseTulos
A139: pv | B139: pv | C139: day | D139: dag | E139: 139 | F139: TaseTulos
A140: 1pv = | B140: 1pv = | C140: 1day = | D140: 1 dag = | E140: 140 | F140: TaseTulos
A141: h | B141: h | C141: hour | D141: timme | E141: 141 | F141: TaseTulos
E142: 142 | F142: TaseTulos
E143: 143 | F143: Tase
A144: Aloittava tase | B144: Aloittava tase | C144: Initial balance sheet | D144: Ingående balans | E144: 144 | F144: Tase | G144: =LEFT(B144,1)&LOWER(RIGHT(B144,LEN(B144)-1)) -> Aloittava tase | H144: Initial balance sheet | I144: Ingående balans
A145: kk | B145: kk | C145: month | D145: månad | E145: 145 | F145: Tase
A146: Rahan tarve (investoinnit) | B146: Rahan tarve (investoinnit) | C146: Capital requirements (investments) | D146: Penningbehov (investeringar) | E146: 146 | F146: Tase | G146: =LEFT(B146,1)&LOWER(RIGHT(B146,LEN(B146)-1)) -> Rahan tarve (investoinnit) | H146: Capital requirements (investments) | I146: Penningbehov (investeringar)
A147: Kiinteistöt ja maa-alueet | B147: Kiinteistöt ja maa-alueet | C147: Property and land | D147: Fastigheter och mark | E147: 147 | F147: Tase
A148: Vuokratakuu | B148: Vuokratakuu | C148: Rental security deposit | D148: Hyresgaranti | E148: 148 | F148: Tase
A149: Remontti | B149: Remontti | C149: Renovation | D149: Renovering | E149: 149 | F149: Tase
A150: Puh | B150: Puh | C150: Tel,fax,copying | D150: tfn, fax, kopiering | E150: 150 | F150: Tase
A151: Atk-laitteet ja -koneet | B151: Atk-laitteet ja -koneet | C151: Computers | D151: Datorer och program | E151: 151 | F151: Tase
A152: Tuotantokoneet&laitteet | B152: Tuotantokoneet&laitteet | C152: Machinery & equipment | D152: Maskiner, anläggningar | E152: 152 | F152: Tase
A153: Kalusteet | B153: Kalusteet | C153: Furnishings | D153: Möbler | E153: 153 | F153: Tase
A154: Tarvikkeet | B154: Tarvikkeet | C154: Supplies | D154: Förnödenheter | E154: 154 | F154: Tase
A155: Auto | B155: Auto | C155: Vehicles | D155: Bil | E155: 155 | F155: Tase
A156: Mallit, protot ym | B156: Mallit, protot ym | C156: Models, prototypes | D156: Modeller, prototyper | E156: 156 | F156: Tase
A157: Markkinointi-investoinnit | B157: Markkinointi-investoinnit | C157: Marketing Invests. | D157: Marknadsföring | E157: 157 | F157: Tase
A158: Kaupparekisterimaksu | B158: Kaupparekisterimaksu | C158: Registration fees | D158: Registreringsavgift | E158: 158 | F158: Tase
A159: Muut yhteensä | B159: Muut yhteensä | C159: Other total | D159: Övrigt totalt | E159: 159 | F159: Tase
A160: Alkuvarasto | B160: Alkuvarasto | C160: Initial inventory | D160: Ingående lager | E160: 160 | F160: Tase
A161: Kassa | B161: Kassa | C161: Cash reserve | D161: Kassareserv | E161: 161 | F161: Tase
A162: Käyttöpääoma yht. | B162: Käyttöpääoma yht. | C162: Working capital (∑) | D162: Driftskapital tot. | E162: 162 | F162: Tase
A163: Yhteensä | B163: Yhteensä | C163: Total | D163: Totalt | E163: 163 | F163: Tase | G163: =LEFT(B163,1)&LOWER(RIGHT(B163,LEN(B163)-1)) -> Yhteensä | H163: Total | I163: Totalt
E164: 164 | F164: Tase
A165: Rahan lähteet | B165: Rahan lähteet | C165: Capital sources | D165: Finansieringskälla | E165: 165 | F165: Tase | G165: =LEFT(B165,1)&LOWER(RIGHT(B165,LEN(B165)-1)) -> Rahan lähteet | H165: Capital sources | I165: Finansieringskälla
A166: Pankkilaina | B166: Pankkilaina | C166: Bank loan | D166: Banklån | E166: 166 | F166: Tase
A167: Finnvera | B167: Finnvera | C167: Finnvera loan | D167: Lån från Finnvera | E167: 167 | F167: Tase
A168: Muu laina | B168: Muu laina | C168: Other loans | D168: Annat lån | E168: 168 | F168: Tase
A169: Vieras pääoma yht. | B169: Vieras pääoma yht. | C169: Liabilities total | D169: Främmande kap. tot | E169: 169 | F169: Tase | G169: =LEFT(B169,1)&LOWER(RIGHT(B169,LEN(B169)-1)) -> Vieras pääoma yht. | H169: Liabilities total | I169: Främmande kap. tot
A170: Osakepääoma rahana | B170: Osakepääoma rahana | C170: Share capital in cash | D170: Aktiekapital i pengar | E170: 170 | F170: Tase
A171: Osakepääoma apporttina | B171: Osakepääoma apporttina | C171: Share capital in kind | D171: Aktiekapital som apport | E171: 171 | F171: Tase
A172: Muu oma pääoma rahana | B172: Muu oma pääoma rahana | C172: Other equity in cash | D172: Annat eget kapital i pengar | E172: 172 | F172: Tase
A173: Muu oma pääoma app:na | B173: Muu oma pääoma app:na | C173: Other equity in kind | D173: Annat eget kapital som apport | E173: 173 | F173: Tase
A174: Yritystuet | B174: Yritystuet | C174: Enterprise subsidies | D174: Företagsstöd | E174: 174 | F174: Tase
A175: Oma pääoma yht. | B175: Oma pääoma yht. | C175: Total equity | D175: Eget kapital tot. | E175: 175 | F175: Tase | G175: =LEFT(B175,1)&LOWER(RIGHT(B175,LEN(B175)-1)) -> Oma pääoma yht. | H175: Total equity | I175: Eget kapital tot.
E176: 176 | F176: Tase
A177: Yhteensä | B177: Yhteensä | C177: Total | D177: Totalt | E177: 177 | F177: Tase | G177: =LEFT(B177,1)&LOWER(RIGHT(B177,LEN(B177)-1)) -> Yhteensä | H177: Total | I177: Totalt
E178: 178 | F178: Tase
E179: 179 | F179: Tase
A180: Käyttöpääoman korjaus | B180: Käyttöpääoman korjaus | C180: Working capital adjustment | D180: Just. driftskapital | E180: 180 | F180: Tase
E181: 181 | F181: Tase
A182: Kassareservi/rahoitustarve | B182: Kassareservi/rahoitustarve | C182: Cash reserve / financing requirement | D182: Kassareserv/finansieringsbehov | E182: 182 | F182: Tase
E183: 183 | F183: Tase
A184: Korko | B184: Korko | C184: Int. rate | D184: Ränta | E184: 184 | F184: Tase
E185: 185 | F185: Tase
A186: Aika (v) | B186: Aika (v) | C186: Time(year) | D186: Tid (år) | E186: 186 | F186: Tase
A187: Täytyy mennä tasan | B187: Täytyy mennä tasan | C187: Must balance! | D187: Måste gå jämnt ut! | E187: 187 | F187: Tase
E188: 188 | F188: Tase
E189: 189 | F189: Invest
E190: 190 | F190: Invest
E191: 191 | F191: Invest
A192: Investoinnit = rahan tarve | B192: Investoinnit = rahan tarve | C192: Investment = capital requirements | D192: Investeringar = penningbehov | E192: 192 | F192: Invest | G192: =LEFT(B192,1)&LOWER(RIGHT(B192,LEN(B192)-1)) -> Investoinnit = rahan tarve | H192: Investment = capital requirements | I192: Investeringar = penningbehov
A193: Nimike | B193: Nimike | C193: Title | D193: Titel | E193: 193 | F193: Invest
A194: Kiinteistö 1 Asuin- tai toimistorakennus | B194: Kiinteistö 1 Asuin- tai toimistorakennus | C194: Property 1 Residential and office buildings | D194: Fastighet 1 Bostadshus eller kontorsbyggnad | E194: 194 | F194: Invest
A195: Kiinteistö 2 Myymälä, varasto, tehdas, työpaja tai muu vastaava rakennus | B195: Kiinteistö 2 Myymälä, varasto, tehdas, työpaja tai muu vastaava rakennus | C195: Property 2 Retail units, warehouses, factories, workshops and other similar buildings | D195: Fastighet 2 Butiker, lager, fabriker, verkstäder eller andra motsvarande byggnader
A196: Maa | B196: Maa | C196: Land | D196: Mark | E196: 195 | F196: Invest
A197: Takuuvuokrat | B197: Takuuvuokrat | C197: rent guarantee | D197: Hyresgaranti | E197: 196 | F197: Invest
A198: Rakennukset ja rakennelmat | B198: Rakennukset ja rakennelmat | C198: Buildings and structures | D198: Byggnader och anläggningar
A199: Kiinteistöt ja maa-alueet yhteensä | B199: Kiinteistöt ja maa-alueet yhteensä | C199: Property and land | D199: Fastigheter och mark | E199: 197 | F199: Invest | G199: =LEFT(B199,1)&LOWER(RIGHT(B199,LEN(B199)-1)) -> Kiinteistöt ja maa-alueet yhteensä | H199: Property and land | I199: Fastigheter och mark
A200: Remonttikulut | B200: Remonttikulut | C200: Renovation costs | D200: Renoveringsbehov | E200: 198 | F200: Invest
... 569 more rows

Sheet Calc (hidden)
A2: Version numero | B2: 2.5 (28.3.2024)
A4: Alv-kanta // string | B4: =Setup!B13*100&"%" -> 24% | C4: =(Setup!B14)*100&"%" -> 14,% | D4: =Setup!B15*100&"%" -> 10% | E4: =Setup!B16*100&"%" -> 0%
A5: Alv-myyntihinnasta // decimal <4> | B5: =1-1/(1+Setup!B13) -> 0.1935483871 | C5: =1-1/(1+Setup!B14) -> 0.1228070175 | D5: =1-1/(1+Setup!B15) -> 0.09090909091 | E5: =1-1/(1+Setup!B16) -> 0
A6: Yhtiömuodot | B6: =Words!A10 -> Yksityinen elinkeinonharjoittaja | C6: =Words!A11 -> Avoin yhtiö | D6: =Words!A12 -> Kommandiittiyhtiö | E6: =Words!A13 -> Osakeyhtiö | F6: =Words!A14 -> Osuuskunta
A7: Prh:n maksut per yhtiömuoto | B7: =Setup!B5 -> 70 | C7: =Setup!B6 -> 280 | D7: =Setup!B7 -> 280 | E7: =Setup!B8 -> 280 | F7: =Setup!B9 -> 370
A8: Asiakas tiedot | D8: Alias
A9: Nimi: | B9: =IF('1. Project'!B9="","",'1. Project'!B9) ->  | C9: ='1. Project'!B9 ->  | D9: as.nimi
A10: Osoite: | B10: =IF('1. Project'!B10="","",'1. Project'!B10) ->  | C10: ='1. Project'!B10 ->  | D10: as.osoite
A11: Puhelin: | B11: =IF('1. Project'!B11="","",'1. Project'!B11) ->  | C11: ='1. Project'!B11 ->  | D11: as.puhelin
A12: Sähköpostiosoite | B12: =IF('1. Project'!B12="","",'1. Project'!B12) ->  | C12: ='1. Project'!B12 ->  | D12: as.sähköposti
A14: Kieli | B14: =if('1. Project'!B3="","Suomi",'1. Project'!B3) -> Suomi | D14: konsultti
A15: Nimi | B15: =IF('1. Project'!B5="","",'1. Project'!B5) ->  | C15: ='1. Project'!B5 ->  | D15: nimi
A16: Puhelinnumero | B16: =IF('1. Project'!B6="","",'1. Project'!B6) ->  | C16: ='1. Project'!B6 ->  | D16: puhelin
A17: Sähköpostiosoite | B17: =IF('1. Project'!B7="","",'1. Project'!B7) ->  | C17: ='1. Project'!B7 ->  | D17: sähköposti
A18: Laskelmien tekopäivämäärä | B18: ='1. Project'!B15 ->  | D18: päivämäärä
A20: Casessa valittu yhtiömuoto | B20: ='1. Project'!B17 -> Osakeyhtiö | E20: Tmi/ay/ky | F20: =IF(B21=B7,TRUE,IF(B21=C7,TRUE,IF(B21=D7,TRUE,FALSE))) -> TRUE
A21: Prh:n maksu valitussa yhtiömuodossa | B21: =IF('1. Project'!B17="",0,IF('1. Project'!C92<>FALSE,Calc!B7,IF('1. Project'!C93<>FALSE,Calc!C7,IF('1. Project'!C94<>FALSE,Calc!D7,IF('1. Project'!C95<>FALSE,Calc!E7,IF('1. Project'!C96<>FALSE,Calc!F7)))))) -> 280 | E21: Oy/Osuuskunta | F21: =IF(B21=E7,TRUE,IF(B21=F7,TRUE,FALSE)) -> TRUE
A22: Käytetty verokanta (Oy/osuuskunta VS tmi/ay/ky) | B22: =IF(F20=TRUE,'2. Fixed'!C9,B31) ->  | H22: Oma nettopalkkatarve + ennakonpidätys | L22: ='2. Fixed'!E8+'2. Fixed'!E9 -> 0
A24: Maksetut palkat / kk | B24: ='5. Salaries'!I26 -> 0 | D24: tyel | F24: 17.34 | H24: yrittäjän palkka /kk | K24: ='5. Salaries'!D21 -> 0
A25: Maksetut sotu / kk | B25: ='5. Salaries'!I27 -> 0 | D25: tvm | F25: 0.27 | H25: yrittäjän palkan sava-maksut | K25: =K24*0.0116 -> 0
A26: Yel/kk | B26: ='2. Fixed'!E11 -> 0 | D26: sava | F26: 1.16
A27: YEL-maksu % | B27: =Setup!B18 -> 0.241 | D27: tapaturma- ryhmähenki | F27: 0.76
A28: Alennettu YEL-maksu % | B28: =0.78*B27 -> 0.18798 | D28: lomapalkka | F28: 9
A29: Tilikauden pituus (kk) | B29: ='2. Fixed'!C4 -> 6 | D29: lomaraha | F29: 4.5
F30: =SUM(F24:F29) -> 33.03
A31: Pääomatulovero% | B31: =Setup!B11 -> 0.2 | F31: 62
A32: Vuokratakuu (kk) | B32: ='3. Invest'!B8 -> 0
A33: Aloittava tase
A34: Kiinteistöt ja maa-alueet | B34: ='3. Invest'!F9-'3. Invest'!F8 -> 0 | D34: +
A35: Vuokratakuu | B35: ='2. Fixed'!E14*B32 -> 0 | D35: +
A36: Pitkävaikutteiset menot yhteensä | B36: ='3. Invest'!F14 -> 0 | D36: +
A37: Liiketoiminnan kauppahinta | B37: ='3. Invest'!F15 -> 0 | D37: +
A38: Yrityksen perustamiskulut | B38: ='3. Invest'!F16 -> 0 | D38: +
A39: Atk-laite ja -ohjelmakulut | B39: ='3. Invest'!F27-'3. Invest'!F20 -> 0 | D39: +
A40: Kone- ja kalustoinvestoinnit | B40: ='3. Invest'!F35-'3. Invest'!F28 -> 0 | D40: +
A41: Tarvikkeet | B41: ='3. Invest'!F41 -> 0 | D41: +
A42: Ajoneuvot | B42: ='3. Invest'!F47 -> 0 | D42: +
A43: Mallit, protot ym | B43: ='3. Invest'!F51 -> 0 | D43: +
A44: Markkinointi invest. | B44: ='3. Invest'!F61 -> 0 | D44: +
A45: Kaupparek. Maksu | B45: =B21 -> 280 | D45: +
A46: Muut yhteensä | B46: ='3. Invest'!F65 -> 0 | D46: +
A47: Alkuvarasto | B47: ='3. Invest'!F67 -> 0 | D47: +
A48: Kassareservi | B48: ='6. Balance Sheet'!P16 ->  | D48: +
A49: Käyttöpääoma yhteensä | B49: ='6. Balance Sheet'!P13 -> 0 | C49: =SUM(B34:B49) -> 280 | D49: <- sum+
A50: Muut oma pääoma apporttina | B50: =B117 -> 0
A51: Käyttöpääoman korjaus | B51: ='6. Balance Sheet'!P14 -> 
A52: Atk-ohjelmat | B52: ='3. Invest'!F20 -> 0
A53: Taseen kalusto | B53: ='3. Invest'!F28+'3. Invest'!F20 -> 0
A55: Tilikauden pituus | B55: ='2. Fixed'!C4 -> 6
A59: Lainat | B59: Määrä | C59: Korko | D59: Aika (v) | E59: Lyhen. (v) | F59: 1v. Korot | G59: 2.v korot | H59: 3.v korot | I59: Lyhen 1.v | J59: Lyhen 2. v | K59: Lyhen 3. v
A60: Pankkilaina | B60: ='6. Balance Sheet'!H4 ->  | C60: ='6. Balance Sheet'!I4 -> 0.057 | D60: ='6. Balance Sheet'!J4 -> 6 | E60: =B60/D60 -> 0 | F60: =(B60-(E60/2))*C60 -> 0 | G60: =(B60-(E60/2)-E60)*C60 -> 0 | H60: =(B60-(E60/2)-E60*2)*C60 -> 0 | I60: =E60 -> 0 | J60: =E60 -> 0 | K60: =E60 -> 0
A61: Finnvera-laina (1.v lyhennysvapaa) | B61: ='6. Balance Sheet'!H5 ->  | C61: ='6. Balance Sheet'!I5 ->  | D61: ='6. Balance Sheet'!J5 ->  | E61: =B61/(D61-1) -> 0 | F61: =B61*C61 -> 0 | G61: =(B61-(E61/2))*C61 -> 0 | H61: =(B61-(E61/2)-E61)*C61 -> 0 | J61: 0 | K61: 0
A62: Muu laina | B62: ='6. Balance Sheet'!H6 ->  | C62: ='6. Balance Sheet'!I6 -> 0.05 | D62: ='6. Balance Sheet'!J6 -> 3 | E62: =B62/D62 -> 0 | F62: =(B62-(E62/2))*C62 -> 0 | G62: =(B62-(E62/2)-E62)*C62 -> 0 | H62: =(B62-(E62/2)-E62*2)*C62 -> 0 | I62: =E62 -> 0 | J62: 0 | K62: 0
A63: Yhteensä | B63: =SUM(B60:B62) -> 0 | E63: Yht -> | F63: =SUM(F60:F62) -> 0 | G63: 0 | H63: 0 | I63: 0 | J63: 0 | K63: 0
A64: (Pääoman lyhennetykset oletetaan maksettavan kerran kuukaudessa tasaerissä, korko on laskettu vuositasolla niin että vuodessa
A65: maksettavat korot määräytyvät vuoden puolivälissä lyhentämättä olevan pääoman mukaan:
A66: (jäljellä oleva pääoma vuoden alussa - (kyseisen vuoden lynennykset yhteensä / 2)) * korkoprosentti))
A68: Lyhennykset + korot 1. v | B68: =F63+I63 -> 0
A73: Käyttäpääomavaraus (kk) | B73: ='2. Fixed'!J3 -> 1
A74: Käyttöpääomatarpeen määrittely ja laskenta
A75: `+kiinteät kulut (KPO yhteensä) | B75: ='2. Fixed'!I63 -> 0
A76: `+(Rahoituskulut (korko+lyhennykset) (1.vuosi)) | B76: =B68/12*B73 -> 0 | D76: ((lyh+korot vuodessa/12)*kk määrä)
A77: `+Myyntibudjetin ostot yht (sis alv) / tilikauden pituus | B77: =B83/B84*B85 -> 0
A78: `+KPO-korjaus (tulosvertailusta) | B78: ='6. Balance Sheet'!P14 -> 
A79: Käyttöpääomatarve yhteensä | B79: =SUM(B75:B78) -> 0
A83: Myyntibudj. Ostot yht. sis.alv | B83: ='4. Sales'!L56 -> 0
A84: Tilikauden pituus | B84: ='2. Fixed'!C4 -> 6
A85: Kiertonopeus (myynti!e46) | B85: ='4. Sales'!E44 -> 1.5
A86: Varaston kiertonopeus pudotusvalikon sisältö) | B86: 0 | C86: 0.25 | D86: 0.5 | E86: 0.75 | F86: 1 | G86: 1.5 | H86: 2 | I86: 3 | J86: 4 | K86: 5 | L86: 7 | M86: 10 | N86: 12
A89: Tulosvertailu
A90: Myynti per tilikausi sis alv | B90: ='4. Sales'!L70 -> 0
A91: Myynti per tilikausi alv 0 | B91: ='4. Sales'!L70-'4. Sales'!L71 -> 0
A95: Kulut per tilikausi
A96: `+poistot | B96: ='3. Invest'!G69 -> 0
A97: `+lainan lyhennykset (lainan lyh 1.v / 12 * tilikauden pituus) | B97: =B68/12*B84 -> 0
A98: `+lainan korot - sisältyvät edelliseen
A99: `+kiinteät kulut (- alv per kk * tilikauden pituus)) | B99: ='2. Fixed'!H63-'2. Fixed'!G63*B84 -> 0
A100: `+ostot per tilikausi alv0 | B100: ='4. Sales'!L74-'4. Sales'!L75 -> 0
A101: Kulut per tilikausi (c147:sta) | B101: =C152 -> 0
A105: Investoinnit yhteensä = rahoitustarve | B105: =C49 -> 280
A108: Vieras pääoma yhteensä | B108: ='6. Balance Sheet'!H7 -> 0
A109: Oma Pääoma yhteensä | B109: ='6. Balance Sheet'!H13 -> 0
A110: Pääomat yhteensä | B110: =SUM(B108:B109) -> 0
A113: Tase
A114: Osakepo rahana | B114: ='6. Balance Sheet'!H8 -> 
A115: Osakepo apporttina | B115: =IF(F21=TRUE,'3. Invest'!E69,0) -> 0
A116: Muu oma po rahana | B116: ='6. Balance Sheet'!H10 -> 0
A117: Muu oma po app:na | B117: =IF(F20=TRUE,'3. Invest'!E69,0) -> 0
A118: Yritystuet | B118: ='6. Balance Sheet'!H12 -> 
A120: Tuloveroprosentti | B120: =B22 -> 
A121: Kustannusrakenne | B121: kk | C121: Til.K(kk)
A122: Oma nettopalkka(tarve) | B122: ='2. Fixed'!E8 ->  | C122: =B122*'2. Fixed'!C4 -> 0
A123: `+ Lainojen lyhennys | B123: =ABS(I63)/12 -> 0 | C123: =ABS(I63) -> 0 | E123: Lainojen lyhennys + poistot lasketaan yhteen ja niistä otetaan itseisarvo
A124: `.- Poistot | B124: =B96/12 -> 0 | C124: =B96 -> 0 | E124: Yllä mainittu + oma nettopalkkatarve == tulos verojen jälkeen
A125: `= Tulot verojen jälkeen | B125: =IF((ABS(B124))>B123,ABS(B124),B123)+B122 -> 0 | C125: 0 | E125: Tähdätään kirjanpidon nollatulokseen, LaLy otetaan huomioon vain siltä osin kuin ylittää poistot
A126: Verot nettopalkasta | B126: =ABS(B120*B122/(1-B120)) -> 0 | C126: =B126*'2. Fixed'!C4 -> 0
A127: Lainat - poistot | B127: =IF(ABS(I63)/B55+B96/B55<0,0,ABS(I63)/B55+B96/B55) -> 0 | C127: =(IF(ABS(I63)/B55+B96/B55<0,0,ABS(I63)/B55+B96/B55))*'2. Fixed'!C4 -> 0
A128: Verot <lainat - poistot> (+ ansiotulovero //muissa kuin oy) | B128: =IF(F21=TRUE,ABS(B31*B127/(1-B31)),ABS(B120*B127/(1-B120))) -> 0 | C128: =ABS('2. Fixed'!C4*B128) -> 0
A129: `+ Verot | B129: =B128+B126 -> 0 | C129: 0 | E129: Verot muutettu laskettavaksi <tuloista verojen jälkeen>
A130: `= Bruttotulo(tarve) | B130: =B125+B129 -> 0 | C130: 0
A131: `+ Lainojen korot | B131: =ABS(F63/12) -> 0 | C131: =ABS(F63) -> 0
A132: `= Käyttökate(tarve) | B132: =SUM(B130:B131) -> 0 | C132: 0
A133: Kiinteät kulut
A134: +Palkat ja palkkiot | B134: =B24 -> 0 | C134: =B134*'2. Fixed'!C4 -> 0
A135: +Henkilösivukulut | B135: 0 | C135: =B135*'2. Fixed'!C4 -> 0
A136: `=+Muut henkilöstösivukulut (ei käytössä vanh. lask.pohj:ssa) | B136: 0 | C136: =B136*'2. Fixed'!C4 -> 0
A137: +Kiinteistökulut | B137: ='2. Fixed'!E18-'2. Fixed'!G18 -> 0 | C137: =B137*'2. Fixed'!C4 -> 0
A138: +Kone-,laite-, ja kalustokulut | B138: ='2. Fixed'!E23-'2. Fixed'!G23 -> 0 | C138: =B138*'2. Fixed'!C4 -> 0
A139: +Kuljetus- ja huolintakulut | B139: ='2. Fixed'!E26-'2. Fixed'!G26 -> 0 | C139: =B139*'2. Fixed'!C4 -> 0
A140: +Ajoneuvokulut | B140: ='2. Fixed'!E57-'2. Fixed'!G57 -> 0 | C140: =B140*'2. Fixed'!C4 -> 0
A141: +Matkakulut | B141: ='2. Fixed'!E31-'2. Fixed'!G31 -> 0 | C141: =B141*'2. Fixed'!C4 -> 0
A142: +Myynti ja markkinointikulut | B142: ='2. Fixed'!E37-'2. Fixed'!G37 -> 0 | C142: =B142*'2. Fixed'!C4 -> 0
A143: +Edustuskulut | B143: ='2. Fixed'!E38-'2. Fixed'!G38 -> 0 | C143: =B143*'2. Fixed'!C4 -> 0
A144: +Tutkimus- ja kehittämiskulut | B144: ='2. Fixed'!E42-'2. Fixed'!G42 -> 0 | C144: =B144*'2. Fixed'!C4 -> 0 | G144: Ostojen ja Kiinteiden kulujen alv:n osuus | J144: ='2. Fixed'!G63+'4. Sales'!L75 -> 0
A145: +Asiantuntijakulut | B145: ='2. Fixed'!E43-'2. Fixed'!G43 -> 0 | C145: =B145*'2. Fixed'!C4 -> 0
A146: +Vakuutukset | B146: ='2. Fixed'!E48-'2. Fixed'!G48 -> 0 | C146: =B146*'2. Fixed'!C4 -> 0
A147: +Hallintokulut | B147: ='2. Fixed'!E53-'2. Fixed'!G53 -> 0 | C147: =B147*'2. Fixed'!C4 -> 0
A148: +Muut liiketoiminnan kulut | B148: ='2. Fixed'!E62-'2. Fixed'!G62 -> 0 | C148: =B148*'2. Fixed'!C4 -> 0
A149: Kiinteät (rivit 129-143(tämä taulu)) yhteensä | B149: =SUM(B134:B148) -> 0 | C149: 0
A150: `=Myyntikate(tarve) | B150: =B149+B132 -> 0 | C150: 0
A151: `+Aineet&tarvikeet (-ALV) | B151: =B152-B150 -> 0 | C151: 0 | E151: lv-myyntikatetarve
A152: `=LIIKEVAIHTO(TARVE) | B152: =IF(('4. Sales'!L72-('4. Sales'!L76))=0,B150,('4. Sales'!L72/('4. Sales'!L72-('4. Sales'!L76))*B150)) -> 0 | C152: =IF(('4. Sales'!L72-('4. Sales'!L76))=0,C150,('4. Sales'!L72/('4. Sales'!L72-('4. Sales'!L76))*C150)) -> 0 | E152: (lv / (lv-(netto-ostot+muut muuttuvat kust))*myyntikate
A153: `+ALV | B153: =B152*B306 -> 0 | C153: =C152*B306 -> 0 | D153: // * keskim myynti alv prossa
A154: `KOKONAISMYYNTI(TARVE) | B154: =SUM(B152:B153) -> 0 | C154: 0
E164: Osakepo rahana | F164: ='6. Balance Sheet'!H8 -> 
A165: StarttiRaha | E165: Osakepo apporttina | F165: ='6. Balance Sheet'!H9 -> 0
A166: Investoinnit (rakennukset, koneet, kalusteet) | B166: ='6. Balance Sheet'!E15+'6. Balance Sheet'!D16 -> 280 | E166: Muu oma po rahana | F166: ='6. Balance Sheet'!H10 -> 0
A167: Käyttöpääoma (1-2 kk:n kulut + käteisvarat) | B167: ='6. Balance Sheet'!D18 -> 0 | E167: Muu oma po app:na | F167: ='6. Balance Sheet'!H11 -> 0
A168: Kustannusylitysvaraus (sisältyy käteisvaroihin) | B168: ='6. Balance Sheet'!D17 -> 
A170: Oma rahoitus | B170: ='6. Balance Sheet'!H13-'6. Balance Sheet'!H12 -> 0 | E170: Yhteensä | F170: =SUM(F164:F169) -> 0
A171: Muiden sijoitukset yritykseen
A172: Lainat b61 | B172: ='6. Balance Sheet'!H7 -> 0
A173: (Mahdolliset avustukset) as yritystuet | B173: ='6. Balance Sheet'!H12 -> 
A176: Tavoitetulos (Yrittäjän oma nettopalkka 1. Vuonna) | B176: =C122 -> 0
A177: Verot + lainojen lyhennys | B177: =C130-C122-C124 -> 0
A178: RAHOITUSTARVE | B178: =C130-C124 -> 0
A179: Korot, muut rahoituskulut | B179: =C131 -> 0
A180: KÄYTTÖKATETARVE | B180: =C132-C124 -> 0
A181: (kiinteät kulut alla)
A182: Palkat ja palkkiot | B182: =C134 -> 0
A183: Henkilösivukulut | B183: 0
A184: Muut henkilöstösivukulut
A185: Kiinteistökulut | B185: =C137 -> 0
A186: Kone-,laite-, ja kalustokulut | B186: 0
A187: Kuljetus- ja huolintakulut | B187: 0
A188: Ajoneuvokulut | B188: 0
A189: Matkakulut | B189: 0
A190: Myynti ja markkinointikulut | B190: =C142+'3. Invest'!F61 -> 0
A191: Edustuskulut | B191: =C143 -> 0
A192: Tutkimus- ja kehittämiskulut | B192: 0
A193: Asiantuntijakulut | B193: 0
A194: Vakuutukset | B194: 0
A195: Hallintokulut | B195: 0
A196: Muut liiketoiminnan kulut | B196: 0
A197: `=myyntikate tarve | B197: 0
A199: aineet ja tarvikkeet | B199: =C151 -> 0
A200: työntekijöiden muuttuvat palkat sivukuluineen
A201: muut muuttuvat
A202: `=liikevaihtotarve | B202: =C152 -> 0
A211: Tulos3v
A212: Valikkoprosentit | B212: =Setup!B21 -> 0 | C212: =Setup!B22 -> 0.03 | D212: =Setup!B23 -> 0.05 | E212: =Setup!B24 -> 0.1 | F212: =Setup!B25 -> 0.2 | G212: =Setup!B26 -> 0.3 | H212: =Setup!B27 -> 0.5 | I212: =Setup!B28 -> 0.75 | J212: =Setup!B29 -> 1 | K212: =Setup!B30 -> 1.5 | L212: =Setup!B31 -> 2 | M212: =Setup!B32 -> 3 | N212: =Setup!B33 -> 5
B214: 1 v | C214: 2 v | D214: 3 v
A215: Myyntituotot (sis alv) | B215: ='4. Sales'!L70 -> 0 | C215: ='3-year-forecast'!F8 -> 0 | D215: ='3-year-forecast'!H8 -> 0
A216: Myynnin oikaisuerät AS alv (-) | B216: =-'4. Sales'!L71 -> 0 | C216: =(1+B301)*B216 -> 0 | D216: =(1+B302)*C216 -> 0
A217: Liikevaihto | B217: =B215+B216 -> 0 | C217: =SUM(C215:C216) -> 0 | D217: 0
A218: Varastomuutos (vanha pohja, ei solussa merkintää)
A219: Valmistus omaan käyttöön (vanha pohja, ei solussa merkintää)
A220: Liiketoiminnan muut tuotot (vanha pohja, ei solussa merkintää)
A221: Tuotot yhteensä | B221: =SUM(B217:B220) -> 0
A222: Materiaalit ja palvelut (vanha pohja, ei solussa merkintää)
A223: Ostot tilikauden aikana | B223: =-'4. Sales'!L74 -> 0
A224: Ostojen oikaisuerät (alv) | B224: ='4. Sales'!L75 -> 0
A225: Varastomuutos (vanha pohja, ei solussa merkintää)
A226: Ulkopuoliset palvelut (alv vähennetty)
A227: Henkilöstökulut (vanha pohja, ei solussa merkintää)
A228: Palkat ja palkkiot | B228: =-('5. Salaries'!I15+'2. Fixed'!H8+'2. Fixed'!H9) -> 0
A229: Henkilösivukulut | B229: =-('5. Salaries'!K15+'2. Fixed'!H11) -> 0
A230: Muut henkilöstösivukulut (vanha pohja t&t!e38 solu tyhjä)
A231: Poistot | B231: ='3. Invest'!G69 -> 0
A232: Liiketoiminnan muut kulut (vanha pohja, ei solussa merkintää)
A233: Vapaeehtoiset henkilöstökulut (vanha pohja t&t!e38 solu tyhjä)
A234: Toimitila- ja kiinteistökulut | B234: =-('2. Fixed'!H18-'2. Fixed'!G18*B55) -> 0 | D234: Seuraavan kerran jatko… tilikauden pituuden vaikutus pois ja alvit vähennykseen.
A235: Kone-, laite-, ja kalustokulut | B235: =-('2. Fixed'!H23-'2. Fixed'!G23*B55) -> 0
A236: Kuljetus-ja huolintakulut | B236: =-('2. Fixed'!H26-'2. Fixed'!G26*B55) -> 0
A237: Ajoneuvokulut | B237: =-('2. Fixed'!H57-'2. Fixed'!G57*B55) -> 0
A238: Matkakulut | B238: =-('2. Fixed'!H31-'2. Fixed'!G31*B55) -> 0 | C238: Mark.invest. | D238: 1. v
A239: Myynti- ja markkinointikulut | B239: =-('2. Fixed'!H37-'2. Fixed'!G37*B55) -> 0 | C239: =-'3. Invest'!D61 -> 0 | D239: =B239+C239 -> 0
A240: Edustuskulut | B240: =-('2. Fixed'!H38-'2. Fixed'!G38*B55) -> 0
A241: Tutkimus- ja kehittämiskulut | B241: =-(('2. Fixed'!H39+'2. Fixed'!H40+'2. Fixed'!H41)-('2. Fixed'!G39+'2. Fixed'!G40+'2. Fixed'!G41)*B55) -> 0
A242: Asiantuntijakulut | B242: =-('2. Fixed'!H43-'2. Fixed'!G43*B55) -> 0
A243: Vakuutuskulut | B243: =-(('2. Fixed'!H44+'2. Fixed'!H45+'2. Fixed'!H46+'2. Fixed'!H47)-('2. Fixed'!G44+'2. Fixed'!G45+'2. Fixed'!G46+'2. Fixed'!G47)*B55) -> 0
A244: Hallintokulut | B244: =-('2. Fixed'!H53-'2. Fixed'!G53*B55) -> 0
A245: Muut liiketoiminnan kulut | B245: =-('2. Fixed'!H62-'2. Fixed'!G62*B55) -> 0
A246: Liikevoitto -tappio | B246: =SUM(B221:B245)+C239 -> 0 | D246: summa - markkinointi investoinnit
A247: Rahoitustuotot ja -kulut | B247: =-('2. Fixed'!C4*F63/B55) -> 0 | D247: `-Korot/kk*tilikauden pituus
A248: Voitto (tappio) ennen sat. eriä | B248: =SUM(B246:B247) -> 0
A249: Satunnaiset erät (vanha pohja, ei solussa merkintää)
A250: Satunnaiset tuotot (vanha pohja, ei solussa merkintää)
A251: Satunnaiset kulut (vanha pohja, ei solussa merkintää) | C251: 2 v | D251: 3 | E251: v
A252: Voitto (tappio) ennen tilinpäätössiirtoja ja veroja | B252: =SUM(B248:B251) -> 0 | C252: ='3-year-forecast'!F45 -> 0 | D252: ='3-year-forecast'!H45 -> 0
... 113 more rows

Sheet POISFVera (hidden)
A1: =Words!A607 -> Finnvera:n laina
A2: =Words!A608 -> Suunniteltu rahoitus
A3: =Words!A609 -> Pääoman tarve | D3: € | E3: =Words!A615 -> Rahoitus | H3: €
A4: =Words!A610 -> Rakennukset ja maa-alueet | D4: =Calc!B269 ->  | E4: =Words!A616 -> Finnvera Oyj:n laina | H4: =Calc!B274 -> 
A5: =Words!A611 -> Koneet ja kalusto | D5: =Calc!B270 -> 0 | E5: =Words!A617 -> Muut pitkäaikaiset lainat | H5: =Calc!B275 -> 0
A6: =Words!A612 -> Käyttöpääoma | D6: =Calc!B271 -> 0 | E6: =Words!A618 -> Muut yritystuet | H6: =Calc!B276 -> 
A7: =Words!A613 -> Yrityksen kehittäminen | D7: =Calc!B272 -> 280 | E7: =Words!A619 -> Oma rahoitus | H7: =Calc!B277 -> 0
C8: =Words!A620 -> Yhteensä | D8: =SUM(D4:D7) -> 280 | G8: =Words!A620 -> Yhteensä | H8: =SUM(H4:H7) -> 0
D12: =Words!A621&" 1" -> Vuosi 1 | F12: =Words!A621&" 2" -> Vuosi 2 | H12: =Words!A621&" 3" -> Vuosi 3
A13: =Words!A623 -> Myyntituotot | D13: =Calc!B279 -> 0 | F13: =Calc!C279 -> 0 | H13: =Calc!D279 -> 0
A14: =Words!A624 -> alv | D14: =Calc!B280 -> 0 | F14: =Calc!C280 -> 0 | H14: =Calc!D280 -> 0
A15: =Words!A625 -> Liikevaihto | D15: =Calc!B281 -> 0 | F15: =Calc!C281 -> 0 | H15: =Calc!D281 -> 0
A16: =Words!A626 -> Aineet ja tarvikkeet | D16: =Calc!B282 -> 0 | F16: =Calc!C282 -> 0 | H16: =Calc!D282 -> 0
A17: =Words!A627 -> Henkilöstökulut | D17: =Calc!B283 -> 0 | F17: =Calc!C283 -> 0 | H17: =Calc!D283 -> 0
A18: =Words!A628 -> Vuokrat | D18: =Calc!B284 -> 0 | F18: =Calc!C284 -> 0 | H18: =Calc!D284 -> 0
A19: =Words!A629 -> Liiketoim. muut kulut | D19: =Calc!B285 -> 0 | F19: =Calc!C285 -> 0 | H19: =Calc!D285 -> 0
A20: =Words!A630 -> Käyttökate | D20: =Calc!B286 -> 0 | F20: =Calc!C286 -> 0 | H20: =Calc!D286 -> 0
A21: =Words!A631 -> Rahoituskulut | D21: =Calc!B287 -> 0 | F21: =Calc!C287 -> 0 | H21: =Calc!D287 -> 0
A22: =Words!A632 -> Verot | B22: =Calc!B31 -> 0.2 | D22: =Calc!B288 -> 0 | F22: =Calc!C288 -> 0 | H22: =Calc!D288 -> 0
A23: =Words!A633 -> Rahoitustulos | D23: =Calc!B289 -> 0 | F23: =Calc!C289 -> 0 | H23: =Calc!D289 -> 0
A24: =Words!A634 -> Poistot | D24: =Calc!B290 -> 0 | F24: =Calc!C290 -> 0 | H24: =Calc!D290 -> 0
A25: =Words!A635 -> Nettotulos | D25: =Calc!B291 -> 0 | F25: =Calc!C291 -> 0 | H25: =Calc!D291 -> 0
A26: =Words!A636 -> Muut tuotot/kulut | D26: =Calc!B292 -> 0 | F26: =Calc!C292 -> 0 | H26: =Calc!D292 -> 0
A27: =Words!A637 -> Kokonaistulos | D27: =Calc!B293 -> 0 | F27: =Calc!C293 -> 0 | H27: =Calc!D293 -> 0
A29: =Words!A639 -> Alkukassa | D29: =Calc!B295 -> 0 | F29: =Calc!C295 -> 0 | H29: =Calc!D295 -> 0
A30: =Words!A640 -> Tilikauden voitto (tappio) | D30: =Calc!B296 -> 0 | F30: =Calc!C296 -> 0 | H30: =Calc!D296 -> 0
A31: =Words!A641 -> Poistot | D31: =ABS(Calc!B297) -> 0 | F31: =ABS(Calc!C297) -> 0 | H31: =ABS(Calc!D297) -> 0
A32: =Words!A642 -> Lainojen lyhennys | D32: =Calc!B298 -> 0 | F32: =Calc!C298 -> 0 | H32: =Calc!D298 -> 0
A33: =Words!A643 -> Loppukassa | D33: =Calc!B299 -> 0 | F33: =Calc!C299 -> 0 | H33: =Calc!D299 -> 0

Sheet pwd (hidden)
A2: Password of the Sheets | B2: te-keskusuusimaa
A3: Status of the workbook (protected/unprotected) | B3: unprotected | C3: <- don`t touch!
A10: Interface passwrod | B10: yrty2000
A12: Setup on/off | B12: on
A14: Tänään | B14: =NOW() -> 2024-05-24T02:14:10.752
